{"text_format":"1","workbook":"xlsx","n_sheets":3,"sheets":["Instructivo","Formato","Listas"],"not_rendered":{"charts":0,"images":6,"macros":1,"external_links":7,"defined_names":110,"comments":0,"pivot_tables":0},"unopened":[],"bounds":{"document_bytes":16777216,"sheet_cells":100000,"rows_first":2000,"rows_last":500,"rows_between":2000,"halvings":0,"cell_chars":16384,"cell_head_chars":4096},"cells_cut":0,"cells_raw":0,"read":"whole","date_system":"1900"}

{"sheet":"Instructivo","index":0,"n_rows":26,"n_cols":5,"rows_kept":26,"cut":false,"hidden":false,"merged":[[25,1,25,4],[14,1,14,4],[15,2,15,4],[16,2,16,4],[19,2,19,4],[20,2,20,4],[21,2,21,4],[22,2,22,4],[23,2,23,4],[17,2,17,4],[18,1,18,4],[19,1,20,1],[21,1,23,1],[5,1,6,4],[7,1,12,4],[3,3,3,4],[1,2,3,2],[1,1,3,1]]}
[]
[null,null,"PROCESO GESTIÓN DE LA TECNOLOGÍA E INFORMACIÓN \nFORMATO DE GESTION DE USUARIOS SISTEMAS DE INFORMACION","F8.P2.GTI","2018-10-05"]
[null,null,null,"Versión 2","Página 1 de 1"]
[null,null,null,"Clasificación de la información: \nClasificada"]
[]
[null,"Señor usuario para habilitar los campos del formato debe dar click en la opción \"Habilitar edición\""]
[]
[]
[]
[]
[]
[]
[]
[]
[null,"Instructivo para diligenciar el Formato"]
[null,"Sección a Diligenciar","Definición"]
[null,"Generalidad:","Para iniciar con el diligenciamiento del formato debe seleccionar el sistema de informacion para el cual requiere el servicio. \n\n\n\n\n\n\n\n\nDebe diligenciar los campos sombreados"]
[null,"Servicio Solicitado","De acuerdo al Sistema de Información seleccionado, se activa la lista de servicios relacionados, debe seleccionar una opcion de acuerdo a lo que necesita tramitar"]
[null,"Diligenciamiento de algunos campos a tener en cuenta"]
[null,"Para el Sistema de Información SIM","Actividades a realizar en el SIM\nEspecificar,\n1. Si el usuario cumple con funciones de tecnico, profesional, Director Regional. Coordinador Planeación y Sistemas o coordinador CZ .\n2. Tipo de perfil: Supervisor, gestor, profesional dentro equipo tecnico interdisciplinario.\n3. Breve descripción de las acciones a realizar"]
[null,null,"Módulos:\n* Registrar todos los módulos requeridos, incluyendo los actuales. \n* Si se solicitan varios módulos, relacionarlos en orden de necesidad.\n1. Metas Sociales y Financieras (MSF) \n2. Atención al Ciudadano (AAC) \n3. Beneficiarios (BEN) \n4. Adopciones (ADO) \n5. Pruebas de Filiación (PGE) \n7. Seguimiento a planes, programas y proyectos (SPR) \n8. Capacitación (CAP) \n9. Administración Unidades de Servicio (AUS)"]
[null,"Para el Sistema de Información SEVEN ERP","Justificación:\nPor favor realice una pequeña justificación del porqué de la creación del usuario en el aplicativo"]
[null,null,"Autorizado por:\nDebe digitar los nombres y apellidos de la persona que autoriza la creación del usuario."]
[null,null,"Cargo de quien Auoriza:\nDebe diligenciar el cargo de la persona que autoriza la creación del usuario."]
[]
[null,"Antes de imprimir este documento… piense en el medio ambiente!  \nCualquier copia impresa de este documento se considera como COPIA NO CONTROLADA.\nLOS DATOS PROPORCIONADOS SERÁN TRATADOS DE ACUERDO A LA POLÌTICA DE TRATAMIENTO DE DATOS PERSONALES DEL ICBF Y A LA LEY 1581 DE 2012"]

{"sheet":"Formato","index":1,"n_rows":111,"n_cols":29,"rows_kept":111,"cut":false,"hidden":true,"merged":[[110,1,110,13],[3,12,3,13],[1,1,3,3],[6,1,6,4],[5,1,5,4],[6,5,6,12],[1,4,3,11]]}
[]
[null,null,null,null,"PROCESO GESTIÓN DE LA TECNOLOGÍA E INFORMACIÓN \nFORMATO DE GESTION DE USUARIOS SISTEMAS DE INFORMACION",null,null,null,null,null,null,null,"F8.P2.GTI","2018-10-05"]
[null,null,null,null,null,null,null,null,null,null,null,null,"Versión 2","Página 1 de 1"]
[null,null,null,null,null,null,null,null,null,null,null,null,"Clasificación de la información: \nClasificada"]
[]
[null,"ELIJA EL SISTEMA DE INFORMACION PARA EL CUAL SE REQUIERE EL SERVICIO"]
[null,null,null,null,null,"Diligencie las celdas sombreadas"]
[]
[]
[null,"Servicio Solicitado","Tipo Documento","Numero documento","Primer Nombre","Segundo Nombre","Primer Apellido","Segundo Apellido","Direccion","Telefono","Correo Electronico","Regional","Area / Centro Zonal",{"$f":"IF(B7=\"NMF\",\"Usuario NMF\",IF(B7=\"SEVEN_ERP\",\"Autorizado por\",\"Genero\"))","v":"Genero"},{"$f":"IF(B7=\"NMF\",\"Rol NMF\",\"\")","v":""},{"$f":"IF(B7=\"NMF\",\"Cargo\",IF(B7=\"SEVEN_ERP\",\"Cargo de quien Autoriza\",\"Fecha de Nacimiento\"))","v":"Fecha de Nacimiento"},{"$f":"IF(B7=\"SIM\",\"Usuario en SIM\",IF(B7=\"NMF\",\"Nombre de quien Autoriza\",IF(B7=\"SINAD\",\"Orden\",IF(B7=\"SEVEN_ERP\",\"Justificación\",\"\"))))","v":""},{"$f":"IF($B$7=\"SIM\",\"Descripcion de la solicitud\",IF($B$7=\"NMF\",\"Cargo de quien Autoriza\",IF($B$7=\"SINAD\",\"Nro. Equipo Actual\",\"\")))","v":""},{"$f":"IF(B7=\"SIM\",\"Perfil del Usuario\",IF(B7=\"SINAD\",\"Nro. Equipo Nuevo\",\"\"))","v":""},{"$f":"IF(B7=\"SIM\",\"Perfil Profesional\",IF(B7=\"SINAD\",\"Observaciones\",\"\"))","v":""},{"$f":"IF(B7=\"SIM\",\"Profesión\",IF(B7=\"NMF\",\"Cargo de quien autoriza\",\" \"))","v":" "},"Actividades a realizar en el SIM","Módulos","Pertenece al grupo Asistencial Apoyo a Grupo Psicosocial","Operador ICBF",null,null,"Regional_DA"]
[null,null,null,null,null,null,null,null,null,null,null,null,null,null,null,null,null,null,null,null,null,null,null,null,null,null,{"$f":"IFERROR(VLOOKUP(B7,Listas!U2:W4,2,0),\"\")","v":""},{"$f":"IFERROR(VLOOKUP(L11,Listas!$H$2:$I$35,2,0),\"\")","v":""},{"$f":"IFERROR(VLOOKUP(H11,Listas!$K$2:$L$21,2,0),\"\")","v":""}]
[null,null,null,null,null,null,null,null,null,null,null,null,null,null,null,null,null,null,null,null,null,null,null,null,null,null,{"$f":"IFERROR(VLOOKUP(H12,Listas!#REF!,2,0),\"\")","v":""},{"$f":"IFERROR(VLOOKUP(L12,Listas!$H$2:$I$35,2,0),\"\")","v":""},{"$f":"IFERROR(VLOOKUP(H12,Listas!$K$2:$L$21,2,0),\"\")","v":""}]
[null,null,null,null,null,null,null,null,null,null,null,null,null,null,null,null,null,null,null,null,null,null,null,null,null,null,{"$f":"IFERROR(VLOOKUP(H13,Listas!#REF!,2,0),\"\")","v":""},{"$f":"IFERROR(VLOOKUP(L13,Listas!$H$2:$I$35,2,0),\"\")","v":""},{"$f":"IFERROR(VLOOKUP(H13,Listas!$K$2:$L$21,2,0),\"\")","v":""}]
[null,null,null,null,null,null,null,null,null,null,null,null,null,null,null,null,null,null,null,null,null,null,null,null,null,null,{"$f":"IFERROR(VLOOKUP(H14,Listas!#REF!,2,0),\"\")","v":""},{"$f":"IFERROR(VLOOKUP(L14,Listas!$H$2:$I$35,2,0),\"\")","v":""},{"$f":"IFERROR(VLOOKUP(H14,Listas!$K$2:$L$21,2,0),\"\")","v":""}]
[null,null,null,null,null,null,null,null,null,null,null,null,null,null,null,null,null,null,null,null,null,null,null,null,null,null,{"$f":"IFERROR(VLOOKUP(H15,Listas!#REF!,2,0),\"\")","v":""},{"$f":"IFERROR(VLOOKUP(L15,Listas!$H$2:$I$35,2,0),\"\")","v":""},{"$f":"IFERROR(VLOOKUP(H15,Listas!$K$2:$L$21,2,0),\"\")","v":""}]
[null,null,null,null,null,null,null,null,null,null,null,null,null,null,null,null,null,null,null,null,null,null,null,null,null,null,{"$f":"IFERROR(VLOOKUP(H16,Listas!#REF!,2,0),\"\")","v":""},{"$f":"IFERROR(VLOOKUP(L16,Listas!$H$2:$I$35,2,0),\"\")","v":""},{"$f":"IFERROR(VLOOKUP(H16,Listas!$K$2:$L$21,2,0),\"\")","v":""}]
[null,null,null,null,null,null,null,null,null,null,null,null,null,null,null,null,null,null,null,null,null,null,null,null,null,null,{"$f":"IFERROR(VLOOKUP(H17,Listas!#REF!,2,0),\"\")","v":""},{"$f":"IFERROR(VLOOKUP(L17,Listas!$H$2:$I$35,2,0),\"\")","v":""},{"$f":"IFERROR(VLOOKUP(H17,Listas!$K$2:$L$21,2,0),\"\")","v":""}]
[null,null,null,null,null,null,null,null,null,null,null,null,null,null,null,null,null,null,null,null,null,null,null,null,null,null,{"$f":"IFERROR(VLOOKUP(H18,Listas!#REF!,2,0),\"\")","v":""},{"$f":"IFERROR(VLOOKUP(L18,Listas!$H$2:$I$35,2,0),\"\")","v":""},{"$f":"IFERROR(VLOOKUP(H18,Listas!$K$2:$L$21,2,0),\"\")","v":""}]
[null,null,null,null,null,null,null,null,null,null,null,null,null,null,null,null,null,null,null,null,null,null,null,null,null,null,{"$f":"IFERROR(VLOOKUP(H19,Listas!#REF!,2,0),\"\")","v":""},{"$f":"IFERROR(VLOOKUP(L19,Listas!$H$2:$I$35,2,0),\"\")","v":""},{"$f":"IFERROR(VLOOKUP(H19,Listas!$K$2:$L$21,2,0),\"\")","v":""}]
[null,null,null,null,null,null,null,null,null,null,null,null,null,null,null,null,null,null,null,null,null,null,null,null,null,null,{"$f":"IFERROR(VLOOKUP(H20,Listas!#REF!,2,0),\"\")","v":""},{"$f":"IFERROR(VLOOKUP(L20,Listas!$H$2:$I$35,2,0),\"\")","v":""},{"$f":"IFERROR(VLOOKUP(H20,Listas!$K$2:$L$21,2,0),\"\")","v":""}]
[null,null,null,null,null,null,null,null,null,null,null,null,null,null,null,null,null,null,null,null,null,null,null,null,null,null,{"$f":"IFERROR(VLOOKUP(H21,Listas!#REF!,2,0),\"\")","v":""},{"$f":"IFERROR(VLOOKUP(L21,Listas!$H$2:$I$35,2,0),\"\")","v":""},{"$f":"IFERROR(VLOOKUP(H21,Listas!$K$2:$L$21,2,0),\"\")","v":""}]
[null,null,null,null,null,null,null,null,null,null,null,null,null,null,null,null,null,null,null,null,null,null,null,null,null,null,{"$f":"IFERROR(VLOOKUP(H22,Listas!#REF!,2,0),\"\")","v":""},{"$f":"IFERROR(VLOOKUP(L22,Listas!$H$2:$I$35,2,0),\"\")","v":""},{"$f":"IFERROR(VLOOKUP(H22,Listas!$K$2:$L$21,2,0),\"\")","v":""}]
[null,null,null,null,null,null,null,null,null,null,null,null,null,null,null,null,null,null,null,null,null,null,null,null,null,null,{"$f":"IFERROR(VLOOKUP(H23,Listas!#REF!,2,0),\"\")","v":""},{"$f":"IFERROR(VLOOKUP(L23,Listas!$H$2:$I$35,2,0),\"\")","v":""},{"$f":"IFERROR(VLOOKUP(H23,Listas!$K$2:$L$21,2,0),\"\")","v":""}]
[null,null,null,null,null,null,null,null,null,null,null,null,null,null,null,null,null,null,null,null,null,null,null,null,null,null,{"$f":"IFERROR(VLOOKUP(H24,Listas!#REF!,2,0),\"\")","v":""},{"$f":"IFERROR(VLOOKUP(L24,Listas!$H$2:$I$35,2,0),\"\")","v":""},{"$f":"IFERROR(VLOOKUP(H24,Listas!$K$2:$L$21,2,0),\"\")","v":""}]
[null,null,null,null,null,null,null,null,null,null,null,null,null,null,null,null,null,null,null,null,null,null,null,null,null,null,{"$f":"IFERROR(VLOOKUP(H25,Listas!#REF!,2,0),\"\")","v":""},{"$f":"IFERROR(VLOOKUP(L25,Listas!$H$2:$I$35,2,0),\"\")","v":""},{"$f":"IFERROR(VLOOKUP(H25,Listas!$K$2:$L$21,2,0),\"\")","v":""}]
[null,null,null,null,null,null,null,null,null,null,null,null,null,null,null,null,null,null,null,null,null,null,null,null,null,null,{"$f":"IFERROR(VLOOKUP(H26,Listas!#REF!,2,0),\"\")","v":""},{"$f":"IFERROR(VLOOKUP(L26,Listas!$H$2:$I$35,2,0),\"\")","v":""},{"$f":"IFERROR(VLOOKUP(H26,Listas!$K$2:$L$21,2,0),\"\")","v":""}]
[null,null,null,null,null,null,null,null,null,null,null,null,null,null,null,null,null,null,null,null,null,null,null,null,null,null,{"$f":"IFERROR(VLOOKUP(H27,Listas!#REF!,2,0),\"\")","v":""},{"$f":"IFERROR(VLOOKUP(L27,Listas!$H$2:$I$35,2,0),\"\")","v":""},{"$f":"IFERROR(VLOOKUP(H27,Listas!$K$2:$L$21,2,0),\"\")","v":""}]
[null,null,null,null,null,null,null,null,null,null,null,null,null,null,null,null,null,null,null,null,null,null,null,null,null,null,{"$f":"IFERROR(VLOOKUP(H28,Listas!#REF!,2,0),\"\")","v":""},{"$f":"IFERROR(VLOOKUP(L28,Listas!$H$2:$I$35,2,0),\"\")","v":""},{"$f":"IFERROR(VLOOKUP(H28,Listas!$K$2:$L$21,2,0),\"\")","v":""}]
[null,null,null,null,null,null,null,null,null,null,null,null,null,null,null,null,null,null,null,null,null,null,null,null,null,null,{"$f":"IFERROR(VLOOKUP(H29,Listas!#REF!,2,0),\"\")","v":""},{"$f":"IFERROR(VLOOKUP(L29,Listas!$H$2:$I$35,2,0),\"\")","v":""},{"$f":"IFERROR(VLOOKUP(H29,Listas!$K$2:$L$21,2,0),\"\")","v":""}]
[null,null,null,null,null,null,null,null,null,null,null,null,null,null,null,null,null,null,null,null,null,null,null,null,null,null,{"$f":"IFERROR(VLOOKUP(H30,Listas!#REF!,2,0),\"\")","v":""},{"$f":"IFERROR(VLOOKUP(L30,Listas!$H$2:$I$35,2,0),\"\")","v":""},{"$f":"IFERROR(VLOOKUP(H30,Listas!$K$2:$L$21,2,0),\"\")","v":""}]
[null,null,null,null,null,null,null,null,null,null,null,null,null,null,null,null,null,null,null,null,null,null,null,null,null,null,{"$f":"IFERROR(VLOOKUP(H31,Listas!#REF!,2,0),\"\")","v":""},{"$f":"IFERROR(VLOOKUP(L31,Listas!$H$2:$I$35,2,0),\"\")","v":""},{"$f":"IFERROR(VLOOKUP(H31,Listas!$K$2:$L$21,2,0),\"\")","v":""}]
[null,null,null,null,null,null,null,null,null,null,null,null,null,null,null,null,null,null,null,null,null,null,null,null,null,null,{"$f":"IFERROR(VLOOKUP(H32,Listas!#REF!,2,0),\"\")","v":""},{"$f":"IFERROR(VLOOKUP(L32,Listas!$H$2:$I$35,2,0),\"\")","v":""},{"$f":"IFERROR(VLOOKUP(H32,Listas!$K$2:$L$21,2,0),\"\")","v":""}]
[null,null,null,null,null,null,null,null,null,null,null,null,null,null,null,null,null,null,null,null,null,null,null,null,null,null,{"$f":"IFERROR(VLOOKUP(H33,Listas!#REF!,2,0),\"\")","v":""},{"$f":"IFERROR(VLOOKUP(L33,Listas!$H$2:$I$35,2,0),\"\")","v":""},{"$f":"IFERROR(VLOOKUP(H33,Listas!$K$2:$L$21,2,0),\"\")","v":""}]
[null,null,null,null,null,null,null,null,null,null,null,null,null,null,null,null,null,null,null,null,null,null,null,null,null,null,{"$f":"IFERROR(VLOOKUP(H34,Listas!#REF!,2,0),\"\")","v":""},{"$f":"IFERROR(VLOOKUP(L34,Listas!$H$2:$I$35,2,0),\"\")","v":""},{"$f":"IFERROR(VLOOKUP(H34,Listas!$K$2:$L$21,2,0),\"\")","v":""}]
[null,null,null,null,null,null,null,null,null,null,null,null,null,null,null,null,null,null,null,null,null,null,null,null,null,null,{"$f":"IFERROR(VLOOKUP(H35,Listas!#REF!,2,0),\"\")","v":""},{"$f":"IFERROR(VLOOKUP(L35,Listas!$H$2:$I$35,2,0),\"\")","v":""},{"$f":"IFERROR(VLOOKUP(H35,Listas!$K$2:$L$21,2,0),\"\")","v":""}]
[null,null,null,null,null,null,null,null,null,null,null,null,null,null,null,null,null,null,null,null,null,null,null,null,null,null,{"$f":"IFERROR(VLOOKUP(H36,Listas!#REF!,2,0),\"\")","v":""},{"$f":"IFERROR(VLOOKUP(L36,Listas!$H$2:$I$35,2,0),\"\")","v":""},{"$f":"IFERROR(VLOOKUP(H36,Listas!$K$2:$L$21,2,0),\"\")","v":""}]
[null,null,null,null,null,null,null,null,null,null,null,null,null,null,null,null,null,null,null,null,null,null,null,null,null,null,{"$f":"IFERROR(VLOOKUP(H37,Listas!#REF!,2,0),\"\")","v":""},{"$f":"IFERROR(VLOOKUP(L37,Listas!$H$2:$I$35,2,0),\"\")","v":""},{"$f":"IFERROR(VLOOKUP(H37,Listas!$K$2:$L$21,2,0),\"\")","v":""}]
[null,null,null,null,null,null,null,null,null,null,null,null,null,null,null,null,null,null,null,null,null,null,null,null,null,null,{"$f":"IFERROR(VLOOKUP(H38,Listas!#REF!,2,0),\"\")","v":""},{"$f":"IFERROR(VLOOKUP(L38,Listas!$H$2:$I$35,2,0),\"\")","v":""},{"$f":"IFERROR(VLOOKUP(H38,Listas!$K$2:$L$21,2,0),\"\")","v":""}]
[null,null,null,null,null,null,null,null,null,null,null,null,null,null,null,null,null,null,null,null,null,null,null,null,null,null,{"$f":"IFERROR(VLOOKUP(H39,Listas!#REF!,2,0),\"\")","v":""},{"$f":"IFERROR(VLOOKUP(L39,Listas!$H$2:$I$35,2,0),\"\")","v":""},{"$f":"IFERROR(VLOOKUP(H39,Listas!$K$2:$L$21,2,0),\"\")","v":""}]
[null,null,null,null,null,null,null,null,null,null,null,null,null,null,null,null,null,null,null,null,null,null,null,null,null,null,{"$f":"IFERROR(VLOOKUP(H40,Listas!#REF!,2,0),\"\")","v":""},{"$f":"IFERROR(VLOOKUP(L40,Listas!$H$2:$I$35,2,0),\"\")","v":""},{"$f":"IFERROR(VLOOKUP(H40,Listas!$K$2:$L$21,2,0),\"\")","v":""}]
[null,null,null,null,null,null,null,null,null,null,null,null,null,null,null,null,null,null,null,null,null,null,null,null,null,null,{"$f":"IFERROR(VLOOKUP(H41,Listas!#REF!,2,0),\"\")","v":""},{"$f":"IFERROR(VLOOKUP(L41,Listas!$H$2:$I$35,2,0),\"\")","v":""},{"$f":"IFERROR(VLOOKUP(H41,Listas!$K$2:$L$21,2,0),\"\")","v":""}]
[null,null,null,null,null,null,null,null,null,null,null,null,null,null,null,null,null,null,null,null,null,null,null,null,null,null,{"$f":"IFERROR(VLOOKUP(H42,Listas!#REF!,2,0),\"\")","v":""},{"$f":"IFERROR(VLOOKUP(L42,Listas!$H$2:$I$35,2,0),\"\")","v":""},{"$f":"IFERROR(VLOOKUP(H42,Listas!$K$2:$L$21,2,0),\"\")","v":""}]
[null,null,null,null,null,null,null,null,null,null,null,null,null,null,null,null,null,null,null,null,null,null,null,null,null,null,{"$f":"IFERROR(VLOOKUP(H43,Listas!#REF!,2,0),\"\")","v":""},{"$f":"IFERROR(VLOOKUP(L43,Listas!$H$2:$I$35,2,0),\"\")","v":""},{"$f":"IFERROR(VLOOKUP(H43,Listas!$K$2:$L$21,2,0),\"\")","v":""}]
[null,null,null,null,null,null,null,null,null,null,null,null,null,null,null,null,null,null,null,null,null,null,null,null,null,null,{"$f":"IFERROR(VLOOKUP(H44,Listas!#REF!,2,0),\"\")","v":""},{"$f":"IFERROR(VLOOKUP(L44,Listas!$H$2:$I$35,2,0),\"\")","v":""},{"$f":"IFERROR(VLOOKUP(H44,Listas!$K$2:$L$21,2,0),\"\")","v":""}]
[null,null,null,null,null,null,null,null,null,null,null,null,null,null,null,null,null,null,null,null,null,null,null,null,null,null,{"$f":"IFERROR(VLOOKUP(H45,Listas!#REF!,2,0),\"\")","v":""},{"$f":"IFERROR(VLOOKUP(L45,Listas!$H$2:$I$35,2,0),\"\")","v":""},{"$f":"IFERROR(VLOOKUP(H45,Listas!$K$2:$L$21,2,0),\"\")","v":""}]
[null,null,null,null,null,null,null,null,null,null,null,null,null,null,null,null,null,null,null,null,null,null,null,null,null,null,{"$f":"IFERROR(VLOOKUP(H46,Listas!#REF!,2,0),\"\")","v":""},{"$f":"IFERROR(VLOOKUP(L46,Listas!$H$2:$I$35,2,0),\"\")","v":""},{"$f":"IFERROR(VLOOKUP(H46,Listas!$K$2:$L$21,2,0),\"\")","v":""}]
[null,null,null,null,null,null,null,null,null,null,null,null,null,null,null,null,null,null,null,null,null,null,null,null,null,null,{"$f":"IFERROR(VLOOKUP(H47,Listas!#REF!,2,0),\"\")","v":""},{"$f":"IFERROR(VLOOKUP(L47,Listas!$H$2:$I$35,2,0),\"\")","v":""},{"$f":"IFERROR(VLOOKUP(H47,Listas!$K$2:$L$21,2,0),\"\")","v":""}]
[null,null,null,null,null,null,null,null,null,null,null,null,null,null,null,null,null,null,null,null,null,null,null,null,null,null,{"$f":"IFERROR(VLOOKUP(H48,Listas!#REF!,2,0),\"\")","v":""},{"$f":"IFERROR(VLOOKUP(L48,Listas!$H$2:$I$35,2,0),\"\")","v":""},{"$f":"IFERROR(VLOOKUP(H48,Listas!$K$2:$L$21,2,0),\"\")","v":""}]
[null,null,null,null,null,null,null,null,null,null,null,null,null,null,null,null,null,null,null,null,null,null,null,null,null,null,{"$f":"IFERROR(VLOOKUP(H49,Listas!#REF!,2,0),\"\")","v":""},{"$f":"IFERROR(VLOOKUP(L49,Listas!$H$2:$I$35,2,0),\"\")","v":""},{"$f":"IFERROR(VLOOKUP(H49,Listas!$K$2:$L$21,2,0),\"\")","v":""}]
[null,null,null,null,null,null,null,null,null,null,null,null,null,null,null,null,null,null,null,null,null,null,null,null,null,null,{"$f":"IFERROR(VLOOKUP(H50,Listas!#REF!,2,0),\"\")","v":""},{"$f":"IFERROR(VLOOKUP(L50,Listas!$H$2:$I$35,2,0),\"\")","v":""},{"$f":"IFERROR(VLOOKUP(H50,Listas!$K$2:$L$21,2,0),\"\")","v":""}]
[null,null,null,null,null,null,null,null,null,null,null,null,null,null,null,null,null,null,null,null,null,null,null,null,null,null,{"$f":"IFERROR(VLOOKUP(H51,Listas!#REF!,2,0),\"\")","v":""},{"$f":"IFERROR(VLOOKUP(L51,Listas!$H$2:$I$35,2,0),\"\")","v":""},{"$f":"IFERROR(VLOOKUP(H51,Listas!$K$2:$L$21,2,0),\"\")","v":""}]
[null,null,null,null,null,null,null,null,null,null,null,null,null,null,null,null,null,null,null,null,null,null,null,null,null,null,{"$f":"IFERROR(VLOOKUP(H52,Listas!#REF!,2,0),\"\")","v":""},{"$f":"IFERROR(VLOOKUP(L52,Listas!$H$2:$I$35,2,0),\"\")","v":""},{"$f":"IFERROR(VLOOKUP(H52,Listas!$K$2:$L$21,2,0),\"\")","v":""}]
[null,null,null,null,null,null,null,null,null,null,null,null,null,null,null,null,null,null,null,null,null,null,null,null,null,null,{"$f":"IFERROR(VLOOKUP(H53,Listas!#REF!,2,0),\"\")","v":""},{"$f":"IFERROR(VLOOKUP(L53,Listas!$H$2:$I$35,2,0),\"\")","v":""},{"$f":"IFERROR(VLOOKUP(H53,Listas!$K$2:$L$21,2,0),\"\")","v":""}]
[null,null,null,null,null,null,null,null,null,null,null,null,null,null,null,null,null,null,null,null,null,null,null,null,null,null,{"$f":"IFERROR(VLOOKUP(H54,Listas!#REF!,2,0),\"\")","v":""},{"$f":"IFERROR(VLOOKUP(L54,Listas!$H$2:$I$35,2,0),\"\")","v":""},{"$f":"IFERROR(VLOOKUP(H54,Listas!$K$2:$L$21,2,0),\"\")","v":""}]
[null,null,null,null,null,null,null,null,null,null,null,null,null,null,null,null,null,null,null,null,null,null,null,null,null,null,{"$f":"IFERROR(VLOOKUP(H55,Listas!#REF!,2,0),\"\")","v":""},{"$f":"IFERROR(VLOOKUP(L55,Listas!$H$2:$I$35,2,0),\"\")","v":""},{"$f":"IFERROR(VLOOKUP(H55,Listas!$K$2:$L$21,2,0),\"\")","v":""}]
[null,null,null,null,null,null,null,null,null,null,null,null,null,null,null,null,null,null,null,null,null,null,null,null,null,null,{"$f":"IFERROR(VLOOKUP(H56,Listas!#REF!,2,0),\"\")","v":""},{"$f":"IFERROR(VLOOKUP(L56,Listas!$H$2:$I$35,2,0),\"\")","v":""},{"$f":"IFERROR(VLOOKUP(H56,Listas!$K$2:$L$21,2,0),\"\")","v":""}]
[null,null,null,null,null,null,null,null,null,null,null,null,null,null,null,null,null,null,null,null,null,null,null,null,null,null,{"$f":"IFERROR(VLOOKUP(H57,Listas!#REF!,2,0),\"\")","v":""},{"$f":"IFERROR(VLOOKUP(L57,Listas!$H$2:$I$35,2,0),\"\")","v":""},{"$f":"IFERROR(VLOOKUP(H57,Listas!$K$2:$L$21,2,0),\"\")","v":""}]
[null,null,null,null,null,null,null,null,null,null,null,null,null,null,null,null,null,null,null,null,null,null,null,null,null,null,{"$f":"IFERROR(VLOOKUP(H58,Listas!#REF!,2,0),\"\")","v":""},{"$f":"IFERROR(VLOOKUP(L58,Listas!$H$2:$I$35,2,0),\"\")","v":""},{"$f":"IFERROR(VLOOKUP(H58,Listas!$K$2:$L$21,2,0),\"\")","v":""}]
[null,null,null,null,null,null,null,null,null,null,null,null,null,null,null,null,null,null,null,null,null,null,null,null,null,null,{"$f":"IFERROR(VLOOKUP(H59,Listas!#REF!,2,0),\"\")","v":""},{"$f":"IFERROR(VLOOKUP(L59,Listas!$H$2:$I$35,2,0),\"\")","v":""},{"$f":"IFERROR(VLOOKUP(H59,Listas!$K$2:$L$21,2,0),\"\")","v":""}]
[null,null,null,null,null,null,null,null,null,null,null,null,null,null,null,null,null,null,null,null,null,null,null,null,null,null,{"$f":"IFERROR(VLOOKUP(H60,Listas!#REF!,2,0),\"\")","v":""},{"$f":"IFERROR(VLOOKUP(L60,Listas!$H$2:$I$35,2,0),\"\")","v":""},{"$f":"IFERROR(VLOOKUP(H60,Listas!$K$2:$L$21,2,0),\"\")","v":""}]
[null,null,null,null,null,null,null,null,null,null,null,null,null,null,null,null,null,null,null,null,null,null,null,null,null,null,{"$f":"IFERROR(VLOOKUP(H61,Listas!#REF!,2,0),\"\")","v":""},{"$f":"IFERROR(VLOOKUP(L61,Listas!$H$2:$I$35,2,0),\"\")","v":""},{"$f":"IFERROR(VLOOKUP(H61,Listas!$K$2:$L$21,2,0),\"\")","v":""}]
[null,null,null,null,null,null,null,null,null,null,null,null,null,null,null,null,null,null,null,null,null,null,null,null,null,null,{"$f":"IFERROR(VLOOKUP(H62,Listas!#REF!,2,0),\"\")","v":""},{"$f":"IFERROR(VLOOKUP(L62,Listas!$H$2:$I$35,2,0),\"\")","v":""},{"$f":"IFERROR(VLOOKUP(H62,Listas!$K$2:$L$21,2,0),\"\")","v":""}]
[null,null,null,null,null,null,null,null,null,null,null,null,null,null,null,null,null,null,null,null,null,null,null,null,null,null,{"$f":"IFERROR(VLOOKUP(H63,Listas!#REF!,2,0),\"\")","v":""},{"$f":"IFERROR(VLOOKUP(L63,Listas!$H$2:$I$35,2,0),\"\")","v":""},{"$f":"IFERROR(VLOOKUP(H63,Listas!$K$2:$L$21,2,0),\"\")","v":""}]
[null,null,null,null,null,null,null,null,null,null,null,null,null,null,null,null,null,null,null,null,null,null,null,null,null,null,{"$f":"IFERROR(VLOOKUP(H64,Listas!#REF!,2,0),\"\")","v":""},{"$f":"IFERROR(VLOOKUP(L64,Listas!$H$2:$I$35,2,0),\"\")","v":""},{"$f":"IFERROR(VLOOKUP(H64,Listas!$K$2:$L$21,2,0),\"\")","v":""}]
[null,null,null,null,null,null,null,null,null,null,null,null,null,null,null,null,null,null,null,null,null,null,null,null,null,null,{"$f":"IFERROR(VLOOKUP(H65,Listas!#REF!,2,0),\"\")","v":""},{"$f":"IFERROR(VLOOKUP(L65,Listas!$H$2:$I$35,2,0),\"\")","v":""},{"$f":"IFERROR(VLOOKUP(H65,Listas!$K$2:$L$21,2,0),\"\")","v":""}]
[null,null,null,null,null,null,null,null,null,null,null,null,null,null,null,null,null,null,null,null,null,null,null,null,null,null,{"$f":"IFERROR(VLOOKUP(H66,Listas!#REF!,2,0),\"\")","v":""},{"$f":"IFERROR(VLOOKUP(L66,Listas!$H$2:$I$35,2,0),\"\")","v":""},{"$f":"IFERROR(VLOOKUP(H66,Listas!$K$2:$L$21,2,0),\"\")","v":""}]
[null,null,null,null,null,null,null,null,null,null,null,null,null,null,null,null,null,null,null,null,null,null,null,null,null,null,{"$f":"IFERROR(VLOOKUP(H67,Listas!#REF!,2,0),\"\")","v":""},{"$f":"IFERROR(VLOOKUP(L67,Listas!$H$2:$I$35,2,0),\"\")","v":""},{"$f":"IFERROR(VLOOKUP(H67,Listas!$K$2:$L$21,2,0),\"\")","v":""}]
[null,null,null,null,null,null,null,null,null,null,null,null,null,null,null,null,null,null,null,null,null,null,null,null,null,null,{"$f":"IFERROR(VLOOKUP(H68,Listas!#REF!,2,0),\"\")","v":""},{"$f":"IFERROR(VLOOKUP(L68,Listas!$H$2:$I$35,2,0),\"\")","v":""},{"$f":"IFERROR(VLOOKUP(H68,Listas!$K$2:$L$21,2,0),\"\")","v":""}]
[null,null,null,null,null,null,null,null,null,null,null,null,null,null,null,null,null,null,null,null,null,null,null,null,null,null,{"$f":"IFERROR(VLOOKUP(H69,Listas!#REF!,2,0),\"\")","v":""},{"$f":"IFERROR(VLOOKUP(L69,Listas!$H$2:$I$35,2,0),\"\")","v":""},{"$f":"IFERROR(VLOOKUP(H69,Listas!$K$2:$L$21,2,0),\"\")","v":""}]
[null,null,null,null,null,null,null,null,null,null,null,null,null,null,null,null,null,null,null,null,null,null,null,null,null,null,{"$f":"IFERROR(VLOOKUP(H70,Listas!#REF!,2,0),\"\")","v":""},{"$f":"IFERROR(VLOOKUP(L70,Listas!$H$2:$I$35,2,0),\"\")","v":""},{"$f":"IFERROR(VLOOKUP(H70,Listas!$K$2:$L$21,2,0),\"\")","v":""}]
[null,null,null,null,null,null,null,null,null,null,null,null,null,null,null,null,null,null,null,null,null,null,null,null,null,null,{"$f":"IFERROR(VLOOKUP(H71,Listas!#REF!,2,0),\"\")","v":""},{"$f":"IFERROR(VLOOKUP(L71,Listas!$H$2:$I$35,2,0),\"\")","v":""},{"$f":"IFERROR(VLOOKUP(H71,Listas!$K$2:$L$21,2,0),\"\")","v":""}]
[null,null,null,null,null,null,null,null,null,null,null,null,null,null,null,null,null,null,null,null,null,null,null,null,null,null,{"$f":"IFERROR(VLOOKUP(H72,Listas!#REF!,2,0),\"\")","v":""},{"$f":"IFERROR(VLOOKUP(L72,Listas!$H$2:$I$35,2,0),\"\")","v":""},{"$f":"IFERROR(VLOOKUP(H72,Listas!$K$2:$L$21,2,0),\"\")","v":""}]
[null,null,null,null,null,null,null,null,null,null,null,null,null,null,null,null,null,null,null,null,null,null,null,null,null,null,{"$f":"IFERROR(VLOOKUP(H73,Listas!#REF!,2,0),\"\")","v":""},{"$f":"IFERROR(VLOOKUP(L73,Listas!$H$2:$I$35,2,0),\"\")","v":""},{"$f":"IFERROR(VLOOKUP(H73,Listas!$K$2:$L$21,2,0),\"\")","v":""}]
[null,null,null,null,null,null,null,null,null,null,null,null,null,null,null,null,null,null,null,null,null,null,null,null,null,null,{"$f":"IFERROR(VLOOKUP(H74,Listas!#REF!,2,0),\"\")","v":""},{"$f":"IFERROR(VLOOKUP(L74,Listas!$H$2:$I$35,2,0),\"\")","v":""},{"$f":"IFERROR(VLOOKUP(H74,Listas!$K$2:$L$21,2,0),\"\")","v":""}]
[null,null,null,null,null,null,null,null,null,null,null,null,null,null,null,null,null,null,null,null,null,null,null,null,null,null,{"$f":"IFERROR(VLOOKUP(H75,Listas!#REF!,2,0),\"\")","v":""},{"$f":"IFERROR(VLOOKUP(L75,Listas!$H$2:$I$35,2,0),\"\")","v":""},{"$f":"IFERROR(VLOOKUP(H75,Listas!$K$2:$L$21,2,0),\"\")","v":""}]
[null,null,null,null,null,null,null,null,null,null,null,null,null,null,null,null,null,null,null,null,null,null,null,null,null,null,{"$f":"IFERROR(VLOOKUP(H76,Listas!#REF!,2,0),\"\")","v":""},{"$f":"IFERROR(VLOOKUP(L76,Listas!$H$2:$I$35,2,0),\"\")","v":""},{"$f":"IFERROR(VLOOKUP(H76,Listas!$K$2:$L$21,2,0),\"\")","v":""}]
[null,null,null,null,null,null,null,null,null,null,null,null,null,null,null,null,null,null,null,null,null,null,null,null,null,null,{"$f":"IFERROR(VLOOKUP(H77,Listas!#REF!,2,0),\"\")","v":""},{"$f":"IFERROR(VLOOKUP(L77,Listas!$H$2:$I$35,2,0),\"\")","v":""},{"$f":"IFERROR(VLOOKUP(H77,Listas!$K$2:$L$21,2,0),\"\")","v":""}]
[null,null,null,null,null,null,null,null,null,null,null,null,null,null,null,null,null,null,null,null,null,null,null,null,null,null,{"$f":"IFERROR(VLOOKUP(H78,Listas!#REF!,2,0),\"\")","v":""},{"$f":"IFERROR(VLOOKUP(L78,Listas!$H$2:$I$35,2,0),\"\")","v":""},{"$f":"IFERROR(VLOOKUP(H78,Listas!$K$2:$L$21,2,0),\"\")","v":""}]
[null,null,null,null,null,null,null,null,null,null,null,null,null,null,null,null,null,null,null,null,null,null,null,null,null,null,{"$f":"IFERROR(VLOOKUP(H79,Listas!#REF!,2,0),\"\")","v":""},{"$f":"IFERROR(VLOOKUP(L79,Listas!$H$2:$I$35,2,0),\"\")","v":""},{"$f":"IFERROR(VLOOKUP(H79,Listas!$K$2:$L$21,2,0),\"\")","v":""}]
[null,null,null,null,null,null,null,null,null,null,null,null,null,null,null,null,null,null,null,null,null,null,null,null,null,null,{"$f":"IFERROR(VLOOKUP(H80,Listas!#REF!,2,0),\"\")","v":""},{"$f":"IFERROR(VLOOKUP(L80,Listas!$H$2:$I$35,2,0),\"\")","v":""},{"$f":"IFERROR(VLOOKUP(H80,Listas!$K$2:$L$21,2,0),\"\")","v":""}]
[null,null,null,null,null,null,null,null,null,null,null,null,null,null,null,null,null,null,null,null,null,null,null,null,null,null,{"$f":"IFERROR(VLOOKUP(H81,Listas!#REF!,2,0),\"\")","v":""},{"$f":"IFERROR(VLOOKUP(L81,Listas!$H$2:$I$35,2,0),\"\")","v":""},{"$f":"IFERROR(VLOOKUP(H81,Listas!$K$2:$L$21,2,0),\"\")","v":""}]
[null,null,null,null,null,null,null,null,null,null,null,null,null,null,null,null,null,null,null,null,null,null,null,null,null,null,{"$f":"IFERROR(VLOOKUP(H82,Listas!#REF!,2,0),\"\")","v":""},{"$f":"IFERROR(VLOOKUP(L82,Listas!$H$2:$I$35,2,0),\"\")","v":""},{"$f":"IFERROR(VLOOKUP(H82,Listas!$K$2:$L$21,2,0),\"\")","v":""}]
[null,null,null,null,null,null,null,null,null,null,null,null,null,null,null,null,null,null,null,null,null,null,null,null,null,null,{"$f":"IFERROR(VLOOKUP(H83,Listas!#REF!,2,0),\"\")","v":""},{"$f":"IFERROR(VLOOKUP(L83,Listas!$H$2:$I$35,2,0),\"\")","v":""},{"$f":"IFERROR(VLOOKUP(H83,Listas!$K$2:$L$21,2,0),\"\")","v":""}]
[null,null,null,null,null,null,null,null,null,null,null,null,null,null,null,null,null,null,null,null,null,null,null,null,null,null,{"$f":"IFERROR(VLOOKUP(H84,Listas!#REF!,2,0),\"\")","v":""},{"$f":"IFERROR(VLOOKUP(L84,Listas!$H$2:$I$35,2,0),\"\")","v":""},{"$f":"IFERROR(VLOOKUP(H84,Listas!$K$2:$L$21,2,0),\"\")","v":""}]
[null,null,null,null,null,null,null,null,null,null,null,null,null,null,null,null,null,null,null,null,null,null,null,null,null,null,{"$f":"IFERROR(VLOOKUP(H85,Listas!#REF!,2,0),\"\")","v":""},{"$f":"IFERROR(VLOOKUP(L85,Listas!$H$2:$I$35,2,0),\"\")","v":""},{"$f":"IFERROR(VLOOKUP(H85,Listas!$K$2:$L$21,2,0),\"\")","v":""}]
[null,null,null,null,null,null,null,null,null,null,null,null,null,null,null,null,null,null,null,null,null,null,null,null,null,null,{"$f":"IFERROR(VLOOKUP(H86,Listas!#REF!,2,0),\"\")","v":""},{"$f":"IFERROR(VLOOKUP(L86,Listas!$H$2:$I$35,2,0),\"\")","v":""},{"$f":"IFERROR(VLOOKUP(H86,Listas!$K$2:$L$21,2,0),\"\")","v":""}]
[null,null,null,null,null,null,null,null,null,null,null,null,null,null,null,null,null,null,null,null,null,null,null,null,null,null,{"$f":"IFERROR(VLOOKUP(H87,Listas!#REF!,2,0),\"\")","v":""},{"$f":"IFERROR(VLOOKUP(L87,Listas!$H$2:$I$35,2,0),\"\")","v":""},{"$f":"IFERROR(VLOOKUP(H87,Listas!$K$2:$L$21,2,0),\"\")","v":""}]
[null,null,null,null,null,null,null,null,null,null,null,null,null,null,null,null,null,null,null,null,null,null,null,null,null,null,{"$f":"IFERROR(VLOOKUP(H88,Listas!#REF!,2,0),\"\")","v":""},{"$f":"IFERROR(VLOOKUP(L88,Listas!$H$2:$I$35,2,0),\"\")","v":""},{"$f":"IFERROR(VLOOKUP(H88,Listas!$K$2:$L$21,2,0),\"\")","v":""}]
[null,null,null,null,null,null,null,null,null,null,null,null,null,null,null,null,null,null,null,null,null,null,null,null,null,null,{"$f":"IFERROR(VLOOKUP(H89,Listas!#REF!,2,0),\"\")","v":""},{"$f":"IFERROR(VLOOKUP(L89,Listas!$H$2:$I$35,2,0),\"\")","v":""},{"$f":"IFERROR(VLOOKUP(H89,Listas!$K$2:$L$21,2,0),\"\")","v":""}]
[null,null,null,null,null,null,null,null,null,null,null,null,null,null,null,null,null,null,null,null,null,null,null,null,null,null,{"$f":"IFERROR(VLOOKUP(H90,Listas!#REF!,2,0),\"\")","v":""},{"$f":"IFERROR(VLOOKUP(L90,Listas!$H$2:$I$35,2,0),\"\")","v":""},{"$f":"IFERROR(VLOOKUP(H90,Listas!$K$2:$L$21,2,0),\"\")","v":""}]
[null,null,null,null,null,null,null,null,null,null,null,null,null,null,null,null,null,null,null,null,null,null,null,null,null,null,{"$f":"IFERROR(VLOOKUP(H91,Listas!#REF!,2,0),\"\")","v":""},{"$f":"IFERROR(VLOOKUP(L91,Listas!$H$2:$I$35,2,0),\"\")","v":""},{"$f":"IFERROR(VLOOKUP(H91,Listas!$K$2:$L$21,2,0),\"\")","v":""}]
[null,null,null,null,null,null,null,null,null,null,null,null,null,null,null,null,null,null,null,null,null,null,null,null,null,null,{"$f":"IFERROR(VLOOKUP(H92,Listas!#REF!,2,0),\"\")","v":""},{"$f":"IFERROR(VLOOKUP(L92,Listas!$H$2:$I$35,2,0),\"\")","v":""},{"$f":"IFERROR(VLOOKUP(H92,Listas!$K$2:$L$21,2,0),\"\")","v":""}]
[null,null,null,null,null,null,null,null,null,null,null,null,null,null,null,null,null,null,null,null,null,null,null,null,null,null,{"$f":"IFERROR(VLOOKUP(H93,Listas!#REF!,2,0),\"\")","v":""},{"$f":"IFERROR(VLOOKUP(L93,Listas!$H$2:$I$35,2,0),\"\")","v":""},{"$f":"IFERROR(VLOOKUP(H93,Listas!$K$2:$L$21,2,0),\"\")","v":""}]
[null,null,null,null,null,null,null,null,null,null,null,null,null,null,null,null,null,null,null,null,null,null,null,null,null,null,{"$f":"IFERROR(VLOOKUP(H94,Listas!#REF!,2,0),\"\")","v":""},{"$f":"IFERROR(VLOOKUP(L94,Listas!$H$2:$I$35,2,0),\"\")","v":""},{"$f":"IFERROR(VLOOKUP(H94,Listas!$K$2:$L$21,2,0),\"\")","v":""}]
[null,null,null,null,null,null,null,null,null,null,null,null,null,null,null,null,null,null,null,null,null,null,null,null,null,null,{"$f":"IFERROR(VLOOKUP(H95,Listas!#REF!,2,0),\"\")","v":""},{"$f":"IFERROR(VLOOKUP(L95,Listas!$H$2:$I$35,2,0),\"\")","v":""},{"$f":"IFERROR(VLOOKUP(H95,Listas!$K$2:$L$21,2,0),\"\")","v":""}]
[null,null,null,null,null,null,null,null,null,null,null,null,null,null,null,null,null,null,null,null,null,null,null,null,null,null,{"$f":"IFERROR(VLOOKUP(H96,Listas!#REF!,2,0),\"\")","v":""},{"$f":"IFERROR(VLOOKUP(L96,Listas!$H$2:$I$35,2,0),\"\")","v":""},{"$f":"IFERROR(VLOOKUP(H96,Listas!$K$2:$L$21,2,0),\"\")","v":""}]
[null,null,null,null,null,null,null,null,null,null,null,null,null,null,null,null,null,null,null,null,null,null,null,null,null,null,{"$f":"IFERROR(VLOOKUP(H97,Listas!#REF!,2,0),\"\")","v":""},{"$f":"IFERROR(VLOOKUP(L97,Listas!$H$2:$I$35,2,0),\"\")","v":""},{"$f":"IFERROR(VLOOKUP(H97,Listas!$K$2:$L$21,2,0),\"\")","v":""}]
[null,null,null,null,null,null,null,null,null,null,null,null,null,null,null,null,null,null,null,null,null,null,null,null,null,null,{"$f":"IFERROR(VLOOKUP(H98,Listas!#REF!,2,0),\"\")","v":""},{"$f":"IFERROR(VLOOKUP(L98,Listas!$H$2:$I$35,2,0),\"\")","v":""},{"$f":"IFERROR(VLOOKUP(H98,Listas!$K$2:$L$21,2,0),\"\")","v":""}]
[null,null,null,null,null,null,null,null,null,null,null,null,null,null,null,null,null,null,null,null,null,null,null,null,null,null,{"$f":"IFERROR(VLOOKUP(H99,Listas!#REF!,2,0),\"\")","v":""},{"$f":"IFERROR(VLOOKUP(L99,Listas!$H$2:$I$35,2,0),\"\")","v":""},{"$f":"IFERROR(VLOOKUP(H99,Listas!$K$2:$L$21,2,0),\"\")","v":""}]
[null,null,null,null,null,null,null,null,null,null,null,null,null,null,null,null,null,null,null,null,null,null,null,null,null,null,{"$f":"IFERROR(VLOOKUP(H100,Listas!#REF!,2,0),\"\")","v":""},{"$f":"IFERROR(VLOOKUP(L100,Listas!$H$2:$I$35,2,0),\"\")","v":""},{"$f":"IFERROR(VLOOKUP(H100,Listas!$K$2:$L$21,2,0),\"\")","v":""}]
[null,null,null,null,null,null,null,null,null,null,null,null,null,null,null,null,null,null,null,null,null,null,null,null,null,null,{"$f":"IFERROR(VLOOKUP(H101,Listas!#REF!,2,0),\"\")","v":""},{"$f":"IFERROR(VLOOKUP(L101,Listas!$H$2:$I$35,2,0),\"\")","v":""},{"$f":"IFERROR(VLOOKUP(H101,Listas!$K$2:$L$21,2,0),\"\")","v":""}]
[null,null,null,null,null,null,null,null,null,null,null,null,null,null,null,null,null,null,null,null,null,null,null,null,null,null,{"$f":"IFERROR(VLOOKUP(H102,Listas!#REF!,2,0),\"\")","v":""},{"$f":"IFERROR(VLOOKUP(L102,Listas!$H$2:$I$35,2,0),\"\")","v":""},{"$f":"IFERROR(VLOOKUP(H102,Listas!$K$2:$L$21,2,0),\"\")","v":""}]
[null,null,null,null,null,null,null,null,null,null,null,null,null,null,null,null,null,null,null,null,null,null,null,null,null,null,{"$f":"IFERROR(VLOOKUP(H103,Listas!#REF!,2,0),\"\")","v":""},{"$f":"IFERROR(VLOOKUP(L103,Listas!$H$2:$I$35,2,0),\"\")","v":""},{"$f":"IFERROR(VLOOKUP(H103,Listas!$K$2:$L$21,2,0),\"\")","v":""}]
[null,null,null,null,null,null,null,null,null,null,null,null,null,null,null,null,null,null,null,null,null,null,null,null,null,null,{"$f":"IFERROR(VLOOKUP(H104,Listas!#REF!,2,0),\"\")","v":""},{"$f":"IFERROR(VLOOKUP(L104,Listas!$H$2:$I$35,2,0),\"\")","v":""},{"$f":"IFERROR(VLOOKUP(H104,Listas!$K$2:$L$21,2,0),\"\")","v":""}]
[null,null,null,null,null,null,null,null,null,null,null,null,null,null,null,null,null,null,null,null,null,null,null,null,null,null,{"$f":"IFERROR(VLOOKUP(H105,Listas!#REF!,2,0),\"\")","v":""},{"$f":"IFERROR(VLOOKUP(L105,Listas!$H$2:$I$35,2,0),\"\")","v":""},{"$f":"IFERROR(VLOOKUP(H105,Listas!$K$2:$L$21,2,0),\"\")","v":""}]
[null,null,null,null,null,null,null,null,null,null,null,null,null,null,null,null,null,null,null,null,null,null,null,null,null,null,{"$f":"IFERROR(VLOOKUP(H106,Listas!#REF!,2,0),\"\")","v":""},{"$f":"IFERROR(VLOOKUP(L106,Listas!$H$2:$I$35,2,0),\"\")","v":""},{"$f":"IFERROR(VLOOKUP(H106,Listas!$K$2:$L$21,2,0),\"\")","v":""}]
[null,null,null,null,null,null,null,null,null,null,null,null,null,null,null,null,null,null,null,null,null,null,null,null,null,null,{"$f":"IFERROR(VLOOKUP(H107,Listas!#REF!,2,0),\"\")","v":""},{"$f":"IFERROR(VLOOKUP(L107,Listas!$H$2:$I$35,2,0),\"\")","v":""},{"$f":"IFERROR(VLOOKUP(H107,Listas!$K$2:$L$21,2,0),\"\")","v":""}]
[null,null,null,null,null,null,null,null,null,null,null,null,null,null,null,null,null,null,null,null,null,null,null,null,null,null,{"$f":"IFERROR(VLOOKUP(H108,Listas!#REF!,2,0),\"\")","v":""},{"$f":"IFERROR(VLOOKUP(L108,Listas!$H$2:$I$35,2,0),\"\")","v":""},{"$f":"IFERROR(VLOOKUP(H108,Listas!$K$2:$L$21,2,0),\"\")","v":""}]
[null,null,null,null,null,null,null,null,null,null,null,null,null,null,null,null,null,null,null,null,null,null,null,null,null,null,{"$f":"IFERROR(VLOOKUP(H109,Listas!#REF!,2,0),\"\")","v":""},{"$f":"IFERROR(VLOOKUP(L109,Listas!$H$2:$I$35,2,0),\"\")","v":""},{"$f":"IFERROR(VLOOKUP(H109,Listas!$K$2:$L$21,2,0),\"\")","v":""}]
[null,null,null,null,null,null,null,null,null,null,null,null,null,null,null,null,null,null,null,null,null,null,null,null,null,null,{"$f":"IFERROR(VLOOKUP(H110,Listas!#REF!,2,0),\"\")","v":""},{"$f":"IFERROR(VLOOKUP(L110,Listas!$H$2:$I$35,2,0),\"\")","v":""},{"$f":"IFERROR(VLOOKUP(H110,Listas!$K$2:$L$21,2,0),\"\")","v":""}]
[null,"Antes de imprimir este documento… piense en el medio ambiente!\nCualquier copia impresa de este documento se considera como COPIA NO CONTROLADA.\nLOS DATOS PROPORCIONADOS SERÁN TRATADOS DE ACUERDO A LA POLÌTICA DE TRATAMIENTO DE DATOS PERSONALES DEL ICBF Y A LA LEY 1581 DE 2012"]

{"sheet":"Listas","index":2,"n_rows":477,"n_cols":31,"rows_kept":477,"cut":false,"hidden":true,"merged":[]}
["StateID","OfficeID","GroupID","Regional","Area",null,"Regional","Sedes","Regional",null,null,null,"Cargos","Aplicaciones",null,"Servicio Solicitado SIM",null,"Servicio Solicitado NMF",null,"Servicio Solicitado SINAD",null,null,"Servicio Solicitado SEVEN ERP",null,"Profesiones",null,"SIM OP",null,"Tipo documento",null,"Rol"]
[1,10000,0,"Sede de la Direccion General","Direccion Administrativa",null,"Sede_de_la_Direccion_General","Sede de la Direccion General","Sede_de_la_Direccion_General","Planta ","Planta","Planta_cargo","Asesor","SIM","SIM","Crear Usuario","NMF","Crear Usuario","SINAD","Crear Usuario","SEVEN ERP","SEVEN_ERP","Crear Usuario",null,"Abogado",null,"SI","Registrar","C.C.",null,"ADMINISTRADORNMF"]
[1,10100,0,"Sede de la Direccion General","Direccion de Contratacion",null,"Regional_Amazonas","Regional Amazonas","Regional_Amazonas","Contrato","Planta","Planta_cargo","Auxiliar Administrativo","NMF","SIM","Activar Usuario","NMF","Modifiicar Usuario","SINAD","Modifiicar Usuario","SEVEN ERP","SEVEN_ERP","Modifiicar Usuario",null,"Administrador Aeronautico",null,"NO","Consultar","C.E.",null,"ADMINISTRADORNMF"]
[1,10101,0,"Sede de la Direccion General","Direccion de Familias y Comunidades",null,"Regional_Antioquia","Regional Antioquia","Regional_Antioquia",null,"Planta","Planta_cargo","Conductor Mecanico","SINAD","SIM","Desactivar Usuario","NMF","Activar Usuario","SINAD","Inactivar Usuario","SEVEN ERP","SEVEN_ERP","Inactivar Usuario",null,"Administrador De Empresas",null,null,null,"PAS",null,"APROPIACION"]
[1,10102,0,"Sede de la Direccion General","Direccion de Gestion Humana",null,"Regional_Arauca","Regional Arauca","Regional_Arauca",null,"Planta","Planta_cargo","Defensor de Familia","SEVEN_ERP","SIM","Adicionar Permisos","NMF","Inactivar Usuario",null,null,null,null,null,null,"Administrador De Empresas Agropecuarias",null,null,null,"T.I.",null,"PROGRAMACION"]
[1,10200,0,"Sede de la Direccion General","Direccion de Informacion y Tecnologia",null,"Regional_Atlantico","Regional Atlantico","Regional_Atlantico",null,"Planta","Planta_cargo","Director General",null,"SIM","Modificar Usuario",null,null,null,null,null,null,null,null,"Administrador De Empresas Turisticas Y Hoteleras",null,null,null,null,null,"PARAM NAC"]
[1,10300,0,"Sede de la Direccion General","Direccion de Logistica y Abastecimiento",null,"Regional_Bogota","Regional Bogota","Regional_Bogota",null,"Planta","Planta_cargo","Director Regional",null,"SIM","Modificar Sucursal",null,null,null,null,null,null,null,null,"Administrador De Instituciones De Servicio",null,null,null,null,null,"PARAMETRIZACION REGI"]
[1,10301,0,"Sede de la Direccion General","Direccion de Niñez y Adolescencia",null,"Regional_Bolivar","Regional Bolivar","Regional_Bolivar",null,"Planta","Planta_cargo","Director Tecnico",null,"SIM","Quitar Permisos",null,null,null,null,null,null,null,null,"Administrador De Negocios",null,null,null,null,null,"MODIFICACIONES"]
[1,10302,0,"Sede de la Direccion General","Direccion de Nutricion",null,"Regional_Boyaca","Regional Boyaca","Regional_Boyaca",null,"Planta","Planta_cargo","Jefe De Oficina",null,null,null,null,null,null,null,null,null,null,null,"Administrador De Negocios Internacionales",null,null,null,null,null,"CONTADOR_REGIONAL"]
[1,10303,0,"Sede de la Direccion General","Direccion de Planeacion y Control de Gestion",null,"Regional_Caldas","Regional Caldas","Regional_Caldas",null,"Planta","Planta_cargo","Jefe De Oficina Asesora",null,null,null,null,null,null,null,null,null,null,null,"Administrador De Sistemas Informaticos",null,null,null,null,null,"CONTADOR_NACIONAL"]
[1,10304,0,"Sede de la Direccion General","Direccion de Primera Infancia",null,"Regional_Caqueta","Regional Caqueta","Regional_Caqueta",null,"Planta","Planta_cargo","Profesional Especializado",null,null,null,null,null,null,null,null,null,null,null,"Administrador Del Medio Ambiente",null,null,null,null,null,"ADM_PARAMETRI"]
[1,10400,0,"Sede de la Direccion General","Direccion de Proteccion",null,"Regional_Casanare","Regional Casanare","Regional_Casanare",null,"Planta","Planta_cargo","Profesional Universitario",null,null,null,null,null,null,null,null,null,null,null,"Administrador Del Medio Ambiente Y De Los Recursos Nturales",null,null,null,null,null,"ASESOR CONTABLE"]
[1,10401,0,"Sede de la Direccion General","Direccion de Servicios y Atencion",null,"Regional_Cauca","Regional Cauca","Regional_Cauca",null,"Planta","Planta_cargo","Secretario",null,null,null,null,null,null,null,null,null,null,null,"Administrador En Salud",null,null,null,null,null,"ADMIN_BANCOS"]
[1,10402,0,"Sede de la Direccion General","Direccion de Sistema Nacional de Bienestar Familiar",null,"Regional_Cesar","Regional Cesar","Regional_Cesar",null,"Planta","Planta_cargo","Secretario Ejecutivo",null,null,null,null,null,null,null,null,null,null,null,"Administrador Maritimo",null,null,null,null,null,"CONSULTA_BANCOS"]
[1,10403,0,"Sede de la Direccion General","Direccion Financiera",null,"Regional_Choco","Regional Choco","Regional_Choco",null,"Planta","Planta_cargo","Secretario General",null,null,null,null,null,null,null,null,null,null,null,"Administrador Policial",null,null,null,null,null,"CONSULTA"]
[1,10404,0,"Sede de la Direccion General","Direccion General",null,"Regional_Cordoba","Regional Cordoba","Regional_Cordoba",null,"Planta","Planta_cargo","Subdirector General",null,null,null,null,null,null,null,null,null,null,null,"Administrador Publico",null,null,null,null,null,"ADMIN PRESUPUESTO"]
[1,10405,0,"Sede de la Direccion General","Grupo de Administracion de Carrera Administrativa",null,"Regional_Cundinamarca","Regional Cundinamarca","Regional_Cundinamarca",null,"Planta","Planta_cargo","Subdirector Tecnico",null,null,null,null,null,null,null,null,null,null,null,"Administrador Turistico Y Hotelero",null,null,null,null,null,"SUBDIREC. PLANEACION"]
[null,null,null,"Sede de la Direccion General","Grupo de Almacen e Inventarios",null,"Regional_Guainia","Regional Guainia","Regional_Guainia",null,"Planta","Planta_cargo","Tecnico Administrativo",null,null,null,null,null,null,null,null,null,null,null,"Agronomo(A)",null,null,null,null,null,"PROF. PLANEACION"]
[1,10500,0,"Sede de la Direccion General","Grupo de Apoyo Logistico",null,"Regional_Guajira","Regional Guajira","Regional_Guajira",null,"Ente de Control","Ente_Control_cargo","Ente de control",null,null,null,null,null,null,null,null,null,null,null,"Antropologo",null,null,null,null,null,"ASESOR PRESUPUESTO"]
[1,10501,0,"Sede de la Direccion General","Grupo de Asesoria Juridica",null,"Regional_Guaviare","Regional Guaviare","Regional_Guaviare",null,"Contratista","contratista_cargo","Contratista",null,null,null,null,null,null,null,null,null,null,null,"Arquitecto(A)",null,null,null,null,null,"GERENTE DE RECURSO"]
[1,10502,0,"Sede de la Direccion General","G. Asistencia Tecnica del Sistema de Aseguramiento de la Calidad",null,"Regional_Huila","Regional Huila","Regional_Huila",null,"Estudiante","Estudiante_cargo","Estudiante",null,null,null,null,null,null,null,null,null,null,null,"Auxiliar De Trabajo Social",null,null,null,null,null,"PROFESIONAL AREA"]
[1,10503,0,"Sede de la Direccion General","Grupo de Auditorias de Calidad",null,"Regional_Magdalena","Regional Magdalena","Regional_Magdalena",null,null,null,null,null,null,null,null,null,null,null,null,null,null,null,"Bacteriologo(A)",null,null,null,null,null,"ANALISTA PPTO REG."]
[1,10600,0,"Sede de la Direccion General","Grupo de Comunicacion Externa",null,"Regional_Meta","Regional Meta","Regional_Meta",null,null,null,null,null,null,null,null,null,null,null,null,null,null,null,"Bibliotecologo(A)",null,null,null,null,null,"SOLI CDP REGI"]
[1,11000,0,"Sede de la Direccion General","Grupo de Comunicacion Interna",null,"Regional_Nariño","Regional Nariño","Regional_Nariño",null,null,null,null,null,null,null,null,null,null,null,null,null,null,null,"Biologo(A)",null,null,null,null,null,"SEVEN"]
[1,12000,0,"Sede de la Direccion General","Grupo de Contabilidad",null,"Regional_Norte_de_Santander","Regional Norte de Santander","Regional_Norte_de_Santander",null,null,null,null,null,null,null,null,null,null,null,null,null,null,null,"Biologo(A) Maritima",null,null,null,null,null,"CONTADOR NIVEL NACI"]
[1,12100,0,"Sede de la Direccion General","Grupo de Control Constitucional y Estrategias Juridicas",null,"Regional_Putumayo","Regional Putumayo","Regional_Putumayo",null,null,null,null,null,null,null,null,null,null,null,null,null,null,null,"Carpintero",null,null,null,null,null,"ASESOR_CONT_NN"]
[1,12101,0,"Sede de la Direccion General","Grupo de Coordinacion de Autoridades Administrativas",null,"Regional_Quindio","Regional Quindio","Regional_Quindio",null,null,null,null,null,null,null,null,null,null,null,null,null,null,null,"Comunicador Social",null,null,null,null,null,"CONTADOR REGIONAL"]
[1,12102,0,"Sede de la Direccion General","Grupo de Desarrollo del Talento Humano",null,"Regional_Risaralda","Regional Risaralda","Regional_Risaralda",null,null,null,null,null,null,null,null,null,null,null,null,null,null,null,"Comunicador Social Y Periodismo",null,null,null,null,null,"APOYO CONTABILIDAD R"]
[1,12103,0,"Sede de la Direccion General","Grupo de Estadistica y Gestion de Informacion",null,"Regional_San_Andres","Regional San Andres","Regional_San_Andres",null,null,null,null,null,null,null,null,null,null,null,null,null,null,null,"Comunicdor Y Relaciones Corporativas",null,null,null,null,null,"TESORERO NIVEL_NAL"]
[1,12104,0,"Sede de la Direccion General","Grupo de Familia",null,"Regional_Santander","Regional Santander","Regional_Santander",null,null,null,null,null,null,null,null,null,null,null,null,null,null,null,"Constructor",null,null,null,null,null,"ASESOR TESOR NN"]
[1,12200,0,"Sede de la Direccion General","Grupo de Gestion de Bienes",null,"Regional_Sucre","Regional Sucre","Regional_Sucre",null,null,null,null,null,null,null,null,null,null,null,null,null,null,null,"Contador",null,null,null,null,null,"PAGADOR REGIONAL"]
[1,12201,0,"Sede de la Direccion General","Grupo de Gestion de Calidad Para el Servicio y la Atencion",null,"Regional_Tolima","Regional Tolima","Regional_Tolima",null,null,null,null,null,null,null,null,null,null,null,null,null,null,null,"Contador Publico",null,null,null,null,null,"APOYO TESORERIA REGI"]
[1,12202,0,"Sede de la Direccion General","Grupo de Gestion de Canales Centro de Contacto",null,"Regional_Valle","Regional Valle","Regional_Valle",null,null,null,null,null,null,null,null,null,null,null,null,null,null,null,"Defensor De Adopciones",null,null,null,null,null,"DIRECCIÓN FINANCIERA"]
[1,12203,0,"Sede de la Direccion General","Grupo de Gestion Documental",null,"Regional_Vaupes","Regional Vaupes","Regional_Vaupes",null,null,null,null,null,null,null,null,null,null,null,null,null,null,null,"Defensor De Familia",null,null,null,null,null,"PERFIL PARA EL MANEJO GENERAL DEL NMF QUE QUE SE ASIGNARA A LA DIRECCIÓN FINANCIERA DEL NIVEL NACIONAL."]
[1,12204,0,"Sede de la Direccion General","Grupo de Gestion Tecnica en Nutricion",null,"Regional_Vichada","Regional Vichada","Regional_Vichada",null,null,null,null,null,null,null,null,null,null,null,null,null,null,null,"Diseñador Grafico",null,null,null,null,null,"COORDINACIÓN FINANCI"]
[1,12205,0,"Sede de la Direccion General","Grupo de Infraestructura Inmobiliaria",null,null,null,null,null,null,null,null,null,null,null,null,null,null,null,null,null,null,null,"Diseñador Industrial",null,null,null,null,null,"APOYO GENERAL FINAN"]
[1,12300,0,"Sede de la Direccion General","Grupo de Investigaciones Disciplinarias",null,null,null,null,null,null,null,null,null,null,null,null,null,null,null,null,null,null,null,"Diseñador Visual",null,null,null,null,null,"CONSULTAS Y REPORTES"]
[1,12301,0,"Sede de la Direccion General","Grupo de Jurisdiccion Coactiva",null,null,null,null,null,null,null,null,null,null,null,null,null,null,null,null,null,null,null,"Ecologo",null,null,null,null,null,"SUPERUSUARIO"]
[1,12302,0,"Sede de la Direccion General","Grupo de Nomina y Seguridad Social",null,null,null,null,null,null,null,null,null,null,null,null,null,null,null,null,null,null,null,"Economista",null,null,null,null,null,"REPORTES_APROPIACION"]
[1,12303,0,"Sede de la Direccion General","Grupo de Personerias Juridicas y Licencias de Funcionamiento",null,null,null,null,null,null,null,null,null,null,null,null,null,null,null,null,null,null,null,"Economista Y Negocios Internacionales",null,null,null,null,null,"ASESOR_CONT_BANCO_NN"]
[1,12304,0,"Sede de la Direccion General","Grupo de Plan de Compras y Contratacion",null,null,null,null,null,null,null,null,null,null,null,null,null,null,null,null,null,null,null,"Educador Especial",null,null,null,null,null,"ADMINISTRADOR_REGCJM"]
[1,12305,0,"Sede de la Direccion General","Grupo de Planeacion Administrativa",null,null,null,null,null,null,null,null,null,null,null,null,null,null,null,null,null,null,null,"Enfermera (O)",null,null,null,null,null,"USUARIO_REG_CJM"]
[1,12306,0,"Sede de la Direccion General","Grupo de Planeacion y Seguimiento Financiero y de Gestion",null,null,null,null,null,null,null,null,null,null,null,null,null,null,null,null,null,null,null,"Especialista En Derecho De Familia",null,null,null,null,null,"ADMINISTRADOR_CJM"]
[1,12400,0,"Sede de la Direccion General","Grupo de Prensa",null,null,null,null,null,null,null,null,null,null,null,null,null,null,null,null,null,null,null,"Estadista",null,null,null,null,null,"ASC CON Y REP"]
[1,12500,0,"Sede de la Direccion General","Grupo de Presupuesto",null,null,null,null,null,null,null,null,null,null,null,null,null,null,null,null,null,null,null,"Experto En Lenguas",null,null,null,null,null,"ADMINISTRADOR SEDE CAJAS MENORES CONSULTAS Y REPORTES"]
[1,12501,0,"Sede de la Direccion General","Grupo de Prevencion",null,null,null,null,null,null,null,null,null,null,null,null,null,null,null,null,null,null,null,"Fisioterapeuta",null,null,null,null,null,"ASC GER REC"]
[1,12502,0,"Sede de la Direccion General","Grupo de Procesos de Apoyo",null,null,null,null,null,null,null,null,null,null,null,null,null,null,null,null,null,null,null,"Fonoaudiologo",null,null,null,null,null,"ASC COOR FINAN"]
[1,12600,0,"Sede de la Direccion General","Grupo de Procesos Misionales",null,null,null,null,null,null,null,null,null,null,null,null,null,null,null,null,null,null,null,"Geologo(A)",null,null,null,null,null,"APERTURA VIG"]
[1,12601,0,"Sede de la Direccion General","Grupo de Quejas",null,null,null,null,null,null,null,null,null,null,null,null,null,null,null,null,null,null,null,"Historiador",null,null,null,null,null,"ARC ANALISTA PPTO RE"]
[1,12700,0,"Sede de la Direccion General","Grupo de Recaudo",null,null,null,null,null,null,null,null,null,null,null,null,null,null,null,null,null,null,null,"Hogar",null,null,null,null,null,"ARC ANALIS PPTO"]
[1,12701,0,"Sede de la Direccion General","Grupo de Registro y Control",null,null,null,null,null,null,null,null,null,null,null,null,null,null,null,null,null,null,null,"Ingeniero Administrativo",null,null,null,null,null,"ARC COORD FINAN"]
[1,12702,0,"Sede de la Direccion General","Grupo de Representacion Judicial",null,null,null,null,null,null,null,null,null,null,null,null,null,null,null,null,null,null,null,"Ingeniero Agroforestal",null,null,null,null,null,"FAQ ADMINISTRADOR"]
[1,12703,0,"Sede de la Direccion General","Grupo de Supervision Contractual",null,null,null,null,null,null,null,null,null,null,null,null,null,null,null,null,null,null,null,"Ingeniero Ambiental",null,null,null,null,null,"FAQ PREGUNTAS"]
[1,12704,0,"Sede de la Direccion General","Grupo de Tesoreria",null,null,null,null,null,null,null,null,null,null,null,null,null,null,null,null,null,null,null,"Ingeniero Ambiental Y Sanitario",null,null,null,null,null,"FAQ RESPUESTAS"]
[1,13000,0,"Sede de la Direccion General","Grupo Especial de Actuacion Inmediata",null,null,null,null,null,null,null,null,null,null,null,null,null,null,null,null,null,null,null,"Ingeniero Biomedico",null,null,null,null,null,"ADMINISTRADOR FAQ"]
[1,13001,0,"Sede de la Direccion General","Grupo Financiero Sede de la Direccion General",null,null,null,null,null,null,null,null,null,null,null,null,null,null,null,null,null,null,null,"Ingeniero Catastral Y Geodesia",null,null,null,null,null,"ADMINISTRADOR MODULO PREGUNTAS FRECUENTES"]
[1,13100,0,"Sede de la Direccion General","Oficina Asesora de Comunicaciones",null,null,null,null,null,null,null,null,null,null,null,null,null,null,null,null,null,null,null,"Ingeniero Civil",null,null,null,null,null,"ADMON_USUARIOS"]
[1,13200,0,"Sede de la Direccion General","Oficina Asesora Juridica",null,null,null,null,null,null,null,null,null,null,null,null,null,null,null,null,null,null,null,"Ingeniero De Alimentos",null,null,null,null,null,"ADMÓN TRIBUTARIA NAL"]
[1,13300,0,"Sede de la Direccion General","Oficina de Aseguramiento a la Calidad",null,null,null,null,null,null,null,null,null,null,null,null,null,null,null,null,null,null,null,"Ingeniero De Diseño De Productos",null,null,null,null,null,"ADMIN ACCIONES"]
[1,14000,0,"Sede de la Direccion General","Oficina de Control Interno",null,null,null,null,null,null,null,null,null,null,null,null,null,null,null,null,null,null,null,"Ingeniero De Materiales",null,null,null,null,null,"URC DELEGADO"]
[1,14100,0,"Sede de la Direccion General","Oficina de Control Interno Disciplinario",null,null,null,null,null,null,null,null,null,null,null,null,null,null,null,null,null,null,null,"Ingeniero De Minas Y Metalurgia",null,null,null,null,null,"USU_CD_CJM"]
[1,14200,0,"Sede de la Direccion General","Oficina de Cooperacion y Convenio",null,null,null,null,null,null,null,null,null,null,null,null,null,null,null,null,null,null,null,"Ingeniero De Petroleos",null,null,null,null,null,"UNIDADNACIONAL"]
[1,20000,0,"Sede de la Direccion General","Oficina de Gestion Regional",null,null,null,null,null,null,null,null,null,null,null,null,null,null,null,null,null,null,null,"Ingeniero De Prduccion",null,null,null,null,null,"CONSULTA RESOLUCION"]
[1,20100,0,"Sede de la Direccion General","Secretaria General",null,null,null,null,null,null,null,null,null,null,null,null,null,null,null,null,null,null,null,"Ingeniero De Procesos",null,null,null,null,null,"CREACION_USUARIOS"]
[1,20200,0,"Sede de la Direccion General","Subdireccion de Adopciones",null,null,null,null,null,null,null,null,null,null,null,null,null,null,null,null,null,null,null,"Ingeniero De Sistemas",null,null,null,null,null,"ADMÓNCONTABLE"]
[1,21000,0,"Sede de la Direccion General","Subdireccion de Articulacion Nacional del SNBF",null,null,null,null,null,null,null,null,null,null,null,null,null,null,null,null,null,null,null,"Ingeniero De Sistemas E Informatica",null,null,null,null,null,"REGIONAL"]
[1,21100,0,"Sede de la Direccion General","Subdireccion de Articulacion Territorial del SNBF",null,null,null,null,null,null,null,null,null,null,null,null,null,null,null,null,null,null,null,"Ingeniero De Sistemas Y Computacion",null,null,null,null,null,"ROL REGIONAL ANÁLISIS Y SEGUIMIENTO A LA EJECUCIÓN PRESUPUESTAL"]
[1,21200,0,"Sede de la Direccion General","Sub. Gestion Tecnica para la Atencion a la Familia y Comunidades",null,null,null,null,null,null,null,null,null,null,null,null,null,null,null,null,null,null,null,"Ingeniero De Sistemas Y Telecomunicaciones",null,null,null,null,null,"CONSULTA RESOLUCIÓN"]
[1,22000,0,"Sede de la Direccion General","Sub. Gestion Tecnica para la Atencion a la Niñez y Adolescencia",null,null,null,null,null,null,null,null,null,null,null,null,null,null,null,null,null,null,null,"Ingeniero De Telecomunicaciones",null,null,null,null,null,"AREA_ASP"]
[1,22100,0,"Sede de la Direccion General","Sub. Gestion Tecnica para la Atencion a la Primera Infancia",null,null,null,null,null,null,null,null,null,null,null,null,null,null,null,null,null,null,null,"Ingeniero De Transportes Y Vias",null,null,null,null,null,"UNIDAD ASP"]
[1,22200,0,"Sede de la Direccion General","Subdireccion de Mejoramiento Organizacional",null,null,null,null,null,null,null,null,null,null,null,null,null,null,null,null,null,null,null,"Ingeniero Electrico",null,null,null,null,null,"PROF AREA REG"]
[1,23000,0,"Sede de la Direccion General","Subdireccion de Monitoreo y Evaluacion",null,null,null,null,null,null,null,null,null,null,null,null,null,null,null,null,null,null,null,"Ingeniero Electronico",null,null,null,null,null,"CONSULTA ASP"]
[1,23100,0,"Sede de la Direccion General","Sub. Operacion de la Atencion a la Familia y Comunidades",null,null,null,null,null,null,null,null,null,null,null,null,null,null,null,null,null,null,null,"Ingeniero Electronico Y Telecomunicaciones",null,null,null,null,null,"ASP_REG_CONSUL"]
[1,23200,0,"Sede de la Direccion General","Sub. Operacion de la Atencion a la Niñez y a la Adolescencia",null,null,null,null,null,null,null,null,null,null,null,null,null,null,null,null,null,null,null,"Ingeniero Fisico",null,null,null,null,null,"ASP_UNI_CONSUL"]
[1,24000,0,"Sede de la Direccion General","Subdireccion de Operacion de la Atencion a la Primera Infancia",null,null,null,null,null,null,null,null,null,null,null,null,null,null,null,null,null,null,null,"Ingeniero Forestal"]
[1,24001,0,"Sede de la Direccion General","Subdireccion de Programacion",null,null,null,null,null,null,null,null,null,null,null,null,null,null,null,null,null,null,null,"Ingeniero Geologo"]
[1,25000,0,"Sede de la Direccion General","Subdireccion de Recursos Tecnologicos",null,null,null,null,null,null,null,null,null,null,null,null,null,null,null,null,null,null,null,"Ingeniero Industrial"]
[1,25001,0,"Sede de la Direccion General","Subdireccion de Responsabilidad Penal",null,null,null,null,null,null,null,null,null,null,null,null,null,null,null,null,null,null,null,"Ingeniero Informatico"]
[1,25100,0,"Sede de la Direccion General","Subdireccion de Restablecimiento de Derechos",null,null,null,null,null,null,null,null,null,null,null,null,null,null,null,null,null,null,null,"Ingeniero Mecanico"]
[1,25200,0,"Sede de la Direccion General","Subdireccion de Sistemas Integrados de Informacion",null,null,null,null,null,null,null,null,null,null,null,null,null,null,null,null,null,null,null,"Ingeniero Mecatronico"]
[1,25300,0,"Sede de la Direccion General","Subdireccion General",null,null,null,null,null,null,null,null,null,null,null,null,null,null,null,null,null,null,null,"Ingeniero Metalurgico"]
[5,500,10000,"Regional Antioquia","Direccion Regional",null,null,null,null,null,null,null,null,null,null,null,null,null,null,null,null,null,null,null,"Ingeniero Naval"]
[5,500,10010,"Regional Antioquia","Grupo Administrativo",null,null,null,null,null,null,null,null,null,null,null,null,null,null,null,null,null,null,null,"Ingeniero Quimico"]
[5,500,20000,"Regional Antioquia","Grupo de Atencion en Ciclos de Vida y Nutricion",null,null,null,null,null,null,null,null,null,null,null,null,null,null,null,null,null,null,null,"Ingeniero Sanitario"]
[5,500,30200,"Regional Antioquia","Grupo de Planeacion y Sistemas",null,null,null,null,null,null,null,null,null,null,null,null,null,null,null,null,null,null,null,"Ingeniero Telematico"]
[5,500,30400,"Regional Antioquia","Grupo de Proteccion",null,null,null,null,null,null,null,null,null,null,null,null,null,null,null,null,null,null,null,"Ingeniero Topografico"]
[5,500,40000,"Regional Antioquia","Grupo Financiero",null,null,null,null,null,null,null,null,null,null,null,null,null,null,null,null,null,null,null,"Ingeriero Agricola"]
[5,500,50000,"Regional Antioquia","Grupo Juridico",null,null,null,null,null,null,null,null,null,null,null,null,null,null,null,null,null,null,null,"Instrumentador Quirurgico"]
[5,501,10100,"Regional Antioquia","CZ Integral Nororiental",null,null,null,null,null,null,null,null,null,null,null,null,null,null,null,null,null,null,null,"Jornalero"]
[5,502,10200,"Regional Antioquia","CZ Integral Noroccidental",null,null,null,null,null,null,null,null,null,null,null,null,null,null,null,null,null,null,null,"Latonero"]
[5,504,10400,"Regional Antioquia","CZ Integral Sur Oriental",null,null,null,null,null,null,null,null,null,null,null,null,null,null,null,null,null,null,null,"Licenciado En Biologia"]
[5,505,10500,"Regional Antioquia","CZ Aburra Norte",null,null,null,null,null,null,null,null,null,null,null,null,null,null,null,null,null,null,null,"Licenciado En Ciencias Sociales"]
[5,506,10600,"Regional Antioquia","CZ Aburra Sur",null,null,null,null,null,null,null,null,null,null,null,null,null,null,null,null,null,null,null,"Licenciado En Educacion"]
[5,507,10700,"Regional Antioquia","CZ Bajo Cauca",null,null,null,null,null,null,null,null,null,null,null,null,null,null,null,null,null,null,null,"Licenciado En Educación Básica Con Énfasis En Ciencias Naturales Y Educación Ambiental"]
[5,508,10800,"Regional Antioquia","CZ La Meseta",null,null,null,null,null,null,null,null,null,null,null,null,null,null,null,null,null,null,null,"Licenciado En Educacion Basica Con Enfasis En Ciencias Sociales"]
[5,509,10900,"Regional Antioquia","CZ Magdalena Medio",null,null,null,null,null,null,null,null,null,null,null,null,null,null,null,null,null,null,null,"Licenciado En Educacion Basica Con Enfasis En Educacion Artistica"]
[5,510,11000,"Regional Antioquia","CZ Occidente",null,null,null,null,null,null,null,null,null,null,null,null,null,null,null,null,null,null,null,"Licenciado En Educacion Basica Con Enfasis En Educacion Fisica Recreacion Y Deporte"]
[5,511,11100,"Regional Antioquia","CZ Occidente Medio",null,null,null,null,null,null,null,null,null,null,null,null,null,null,null,null,null,null,null,"Licenciado En Educacion Basica Con Enfasis En Humanidades Español E Ingles"]
[5,512,11200,"Regional Antioquia","CZ Oriente",null,null,null,null,null,null,null,null,null,null,null,null,null,null,null,null,null,null,null,"Licenciado En Educacion Basica Con Enfasis En Humanidades Y Lengua Castellana"]
[5,513,11300,"Regional Antioquia","CZ Porce Nus",null,null,null,null,null,null,null,null,null,null,null,null,null,null,null,null,null,null,null,"Licenciado En Educacion Basica Con Enfasis En Humanidades, Español Y Lenguas Extranjeras"]
[5,514,11400,"Regional Antioquia","CZ Suroeste",null,null,null,null,null,null,null,null,null,null,null,null,null,null,null,null,null,null,null,"Licenciado En Educacion Basica Con Enfasis En Matematicas"]
[5,515,11500,"Regional Antioquia","CZ Penderisco",null,null,null,null,null,null,null,null,null,null,null,null,null,null,null,null,null,null,null,"Licenciado En Educación Básica Énfasis Ciencias Naturales Y Educación Ambiental"]
[5,516,11600,"Regional Antioquia","CZ Uraba",null,null,null,null,null,null,null,null,null,null,null,null,null,null,null,null,null,null,null,"Licenciado En Educacion Especial"]
[5,517,11700,"Regional Antioquia","CZ Oriente Medio",null,null,null,null,null,null,null,null,null,null,null,null,null,null,null,null,null,null,null,"Licenciado En Educacion Fisica"]
[8,800,10000,"Regional Atlantico","Direccion Regional",null,null,null,null,null,null,null,null,null,null,null,null,null,null,null,null,null,null,null,"Licenciado En Educacion Fisica, Recreacion Y Deporte"]
[8,800,10010,"Regional Atlantico","Grupo Administrativo",null,null,null,null,null,null,null,null,null,null,null,null,null,null,null,null,null,null,null,"Licenciado En Educacion Infantil"]
[8,800,20000,"Regional Atlantico","Grupo de Asistencia Tecnica",null,null,null,null,null,null,null,null,null,null,null,null,null,null,null,null,null,null,null,"Licenciado En Educacion Preescolar"]
[8,800,30000,"Regional Atlantico","Grupo de Planeacion y Sistemas",null,null,null,null,null,null,null,null,null,null,null,null,null,null,null,null,null,null,null,"Licenciado En Educación Preescolar"]
[8,800,40000,"Regional Atlantico","Grupo Financiero",null,null,null,null,null,null,null,null,null,null,null,null,null,null,null,null,null,null,null,"Licenciado En Filosofia"]
[8,800,50000,"Regional Atlantico","Grupo Juridico",null,null,null,null,null,null,null,null,null,null,null,null,null,null,null,null,null,null,null,"Licenciado En Fisica"]
[8,801,10100,"Regional Atlantico","CZ Norte Centro Historico",null,null,null,null,null,null,null,null,null,null,null,null,null,null,null,null,null,null,null,"Licenciado En Historia"]
[8,802,10200,"Regional Atlantico","CZ Suroccidente",null,null,null,null,null,null,null,null,null,null,null,null,null,null,null,null,null,null,null,"Licenciado En Informatica Educativa"]
[8,803,10300,"Regional Atlantico","CZ Baranoa",null,null,null,null,null,null,null,null,null,null,null,null,null,null,null,null,null,null,null,"Licenciado En Informatica Y Medios Audiovisuales"]
[8,804,10400,"Regional Atlantico","CZ Sabanalarga",null,null,null,null,null,null,null,null,null,null,null,null,null,null,null,null,null,null,null,"Licenciado En Lengua Castellana Y Literatura"]
[8,805,10500,"Regional Atlantico","CZ Sabanagrande",null,null,null,null,null,null,null,null,null,null,null,null,null,null,null,null,null,null,null,"Licenciado En Lenguas Extranjeras"]
[8,806,10600,"Regional Atlantico","CZ Hipodromo",null,null,null,null,null,null,null,null,null,null,null,null,null,null,null,null,null,null,null,"Licenciado En Lenguas Modernas"]
[8,807,10700,"Regional Atlantico","CZ Suroriente",null,null,null,null,null,null,null,null,null,null,null,null,null,null,null,null,null,null,null,"Licenciado En Literatura"]
[11,1100,10000,"Regional Bogota","Direccion Regional",null,null,null,null,null,null,null,null,null,null,null,null,null,null,null,null,null,null,null,"Licenciado En Matematicas"]
[11,1100,10010,"Regional Bogota","Grupo Administrativo",null,null,null,null,null,null,null,null,null,null,null,null,null,null,null,null,null,null,null,"Licenciado En Matematicas Y Fisica"]
[11,1100,20000,"Regional Bogota","Grupo de Atencion en Ciclos de Vida y Nutricion",null,null,null,null,null,null,null,null,null,null,null,null,null,null,null,null,null,null,null,"Licenciado En Musica"]
[11,1100,30200,"Regional Bogota","Grupo de Gestion Humana",null,null,null,null,null,null,null,null,null,null,null,null,null,null,null,null,null,null,null,"Licenciado En Pedagogia Infantil"]
[11,1100,30400,"Regional Bogota","Grupo de Planeacion y Sistemas",null,null,null,null,null,null,null,null,null,null,null,null,null,null,null,null,null,null,null,"Licenciado En Psicopedagogia Con Enfasis En Asesoria Educativa"]
[11,1100,40000,"Regional Bogota","Grupo de Proteccion",null,null,null,null,null,null,null,null,null,null,null,null,null,null,null,null,null,null,null,"Licenciado En Quimica"]
[11,1100,40200,"Regional Bogota","Grupo de Recaudo",null,null,null,null,null,null,null,null,null,null,null,null,null,null,null,null,null,null,null,"Maestra Jardinera/O"]
[11,1100,50000,"Regional Bogota","Grupo Financiero",null,null,null,null,null,null,null,null,null,null,null,null,null,null,null,null,null,null,null,"Mecanico"]
[11,1100,50100,"Regional Bogota","Grupo Juridico",null,null,null,null,null,null,null,null,null,null,null,null,null,null,null,null,null,null,null,"Medico"]
[11,1101,10100,"Regional Bogota","CZ Ciudad Bolivar",null,null,null,null,null,null,null,null,null,null,null,null,null,null,null,null,null,null,null,"Medico Veterinario"]
[11,1102,10200,"Regional Bogota","CZ Tunjuelito",null,null,null,null,null,null,null,null,null,null,null,null,null,null,null,null,null,null,null,"Medico Veterinario Y Zootecnista"]
[11,1103,10300,"Regional Bogota","CZ Usme",null,null,null,null,null,null,null,null,null,null,null,null,null,null,null,null,null,null,null,"Microbiologa"]
[11,1104,10400,"Regional Bogota","CZ San Cristobal Sur",null,null,null,null,null,null,null,null,null,null,null,null,null,null,null,null,null,null,null,"Musico"]
[11,1105,10500,"Regional Bogota","CZ Kennedy",null,null,null,null,null,null,null,null,null,null,null,null,null,null,null,null,null,null,null,"Musico Instrumental"]
[11,1106,10600,"Regional Bogota","CZ Revivir",null,null,null,null,null,null,null,null,null,null,null,null,null,null,null,null,null,null,null,"Nutricionista"]
[11,1107,10700,"Regional Bogota","CZ Puente Aranda",null,null,null,null,null,null,null,null,null,null,null,null,null,null,null,null,null,null,null,"Oceanografo Fisico"]
[11,1108,10800,"Regional Bogota","CZ Bosa",null,null,null,null,null,null,null,null,null,null,null,null,null,null,null,null,null,null,null,"Odontologo"]
[11,1109,10900,"Regional Bogota","CZ Rafael Uribe",null,null,null,null,null,null,null,null,null,null,null,null,null,null,null,null,null,null,null,"Optometra"]
[11,1110,11000,"Regional Bogota","CZ Santa Fe",null,null,null,null,null,null,null,null,null,null,null,null,null,null,null,null,null,null,null,"Pedagogo"]
[11,1111,11100,"Regional Bogota","CZ Fontibon",null,null,null,null,null,null,null,null,null,null,null,null,null,null,null,null,null,null,null,"Profesional En Artes Plasticas"]
[11,1112,11200,"Regional Bogota","CZ Barrios Unidos",null,null,null,null,null,null,null,null,null,null,null,null,null,null,null,null,null,null,null,"Profesional En Artes Representativas"]
[11,1113,11300,"Regional Bogota","CZ Engativa",null,null,null,null,null,null,null,null,null,null,null,null,null,null,null,null,null,null,null,"Profesional En Artes Visuales"]
[11,1114,11400,"Regional Bogota","CZ Suba",null,null,null,null,null,null,null,null,null,null,null,null,null,null,null,null,null,null,null,"Profesional En Ciencias Del Deporte"]
[11,1115,11500,"Regional Bogota","CZ Usaquen",null,null,null,null,null,null,null,null,null,null,null,null,null,null,null,null,null,null,null,"Profesional En Ciencias Del Deporte Y La Recreacion"]
[11,1116,11600,"Regional Bogota","CZ Martires",null,null,null,null,null,null,null,null,null,null,null,null,null,null,null,null,null,null,null,"Profesional En Ciencias Política Y Gobierno"]
[11,1117,11700,"Regional Bogota","CZ Restitucion Especializado Efecto Reanudar - Creer",null,null,null,null,null,null,null,null,null,null,null,null,null,null,null,null,null,null,null,"Profesional En Ciencias Politicas"]
[13,1300,10000,"Regional Bolivar","Direccion Regional",null,null,null,null,null,null,null,null,null,null,null,null,null,null,null,null,null,null,null,"Profesional En Cine Y Television"]
[13,1300,10010,"Regional Bolivar","Grupo de Planeacion y Sistemas",null,null,null,null,null,null,null,null,null,null,null,null,null,null,null,null,null,null,null,"Profesional En Comercio Exterior"]
[13,1300,20000,"Regional Bolivar","Grupo Juridico",null,null,null,null,null,null,null,null,null,null,null,null,null,null,null,null,null,null,null,"Profesional En Comercio Internacional "]
[13,1300,30000,"Regional Bolivar","Grupo de Asistencia Tecnica",null,null,null,null,null,null,null,null,null,null,null,null,null,null,null,null,null,null,null,"Profesional En Criminalistica "]
[13,1300,40000,"Regional Bolivar","Grupo Administrativo",null,null,null,null,null,null,null,null,null,null,null,null,null,null,null,null,null,null,null,"Profesional En Cultura Fisica, Deporte Y Recreacion"]
[13,1300,50000,"Regional Bolivar","Grupo Financiero",null,null,null,null,null,null,null,null,null,null,null,null,null,null,null,null,null,null,null,"Profesional En Desarrollo Familiar"]
[13,1301,10100,"Regional Bolivar","CZ Norte Historico y Del Caribe",null,null,null,null,null,null,null,null,null,null,null,null,null,null,null,null,null,null,null,"Profesional En Español Y Filologia Clasica"]
[13,1302,10200,"Regional Bolivar","CZ De La Virgen Y Turistico",null,null,null,null,null,null,null,null,null,null,null,null,null,null,null,null,null,null,null,"Profesional En Estudios Literarios"]
[13,1303,10300,"Regional Bolivar","CZ Industrial De La Bahia",null,null,null,null,null,null,null,null,null,null,null,null,null,null,null,null,null,null,null,"Profesional En Estudios Musicales"]
[13,1304,10400,"Regional Bolivar","CZ Turbaco",null,null,null,null,null,null,null,null,null,null,null,null,null,null,null,null,null,null,null,"Profesional En Farmacia"]
[13,1305,10500,"Regional Bolivar","CZ El Carmen De Bolivar",null,null,null,null,null,null,null,null,null,null,null,null,null,null,null,null,null,null,null,"Profesional En Filologia E Idiomas"]
[13,1306,10600,"Regional Bolivar","CZ Magangue",null,null,null,null,null,null,null,null,null,null,null,null,null,null,null,null,null,null,null,"Profesional En Filosofia"]
[13,1307,10700,"Regional Bolivar","CZ Mompox",null,null,null,null,null,null,null,null,null,null,null,null,null,null,null,null,null,null,null,"Profesional En Filosofia Y Humanidades"]
[13,1308,10800,"Regional Bolivar","CZ Simiti",null,null,null,null,null,null,null,null,null,null,null,null,null,null,null,null,null,null,null,"Profesional En Filosofia Y Letras"]
[15,1500,10000,"Regional Boyaca","Direccion Regional",null,null,null,null,null,null,null,null,null,null,null,null,null,null,null,null,null,null,null,"Profesional En Finanzas Y Comercio Exterior "]
[15,1500,10010,"Regional Boyaca","Grupo de Planeacion y Sistemas",null,null,null,null,null,null,null,null,null,null,null,null,null,null,null,null,null,null,null,"Profesional En Finanzas Y Relaciones Internacionales"]
[15,1500,20000,"Regional Boyaca","Grupo Juridico",null,null,null,null,null,null,null,null,null,null,null,null,null,null,null,null,null,null,null,"Profesional En Fisica"]
[15,1500,30000,"Regional Boyaca","Grupo de Asistencia Tecnica",null,null,null,null,null,null,null,null,null,null,null,null,null,null,null,null,null,null,null,"Profesional En Geografia"]
[15,1500,40000,"Regional Boyaca","Grupo Administrativo",null,null,null,null,null,null,null,null,null,null,null,null,null,null,null,null,null,null,null,"Profesional En Gerencia De La Seguridad Y Analisis Sociopolitico"]
[15,1500,50000,"Regional Boyaca","Grupo Financiero",null,null,null,null,null,null,null,null,null,null,null,null,null,null,null,null,null,null,null,"Profesional En Gobierno Y Relaciones Internacionales"]
[15,1501,10100,"Regional Boyaca","CZ Tunja 1",null,null,null,null,null,null,null,null,null,null,null,null,null,null,null,null,null,null,null,"Profesional En Lenguajes Y Estudios Socioculturales"]
[15,1502,10200,"Regional Boyaca","CZ Tunja 2",null,null,null,null,null,null,null,null,null,null,null,null,null,null,null,null,null,null,null,"Profesional En Lingüística"]
[15,1503,10300,"Regional Boyaca","CZ Sogamoso",null,null,null,null,null,null,null,null,null,null,null,null,null,null,null,null,null,null,null,"Profesional En Literatura"]
[15,1504,10400,"Regional Boyaca","CZ Duitama",null,null,null,null,null,null,null,null,null,null,null,null,null,null,null,null,null,null,null,"Profesional En Matematicas"]
[15,1505,10500,"Regional Boyaca","CZ Chiquinquira",null,null,null,null,null,null,null,null,null,null,null,null,null,null,null,null,null,null,null,"Profesional En Mercadeo Nacional E Internacional"]
[15,1506,10600,"Regional Boyaca","CZ Garagoa",null,null,null,null,null,null,null,null,null,null,null,null,null,null,null,null,null,null,null,"Profesional En Mercadeo Y Publicidad"]
[15,1507,10700,"Regional Boyaca","CZ Puerto Boyaca",null,null,null,null,null,null,null,null,null,null,null,null,null,null,null,null,null,null,null,"Profesional En Negocios Internacionales"]
[15,1508,10800,"Regional Boyaca","CZ Soata",null,null,null,null,null,null,null,null,null,null,null,null,null,null,null,null,null,null,null,"Profesional En Relaciones Internacionales"]
[15,1509,10900,"Regional Boyaca","CZ El Cocuy",null,null,null,null,null,null,null,null,null,null,null,null,null,null,null,null,null,null,null,"Profesional En Sistemas De Informacion Y Documentacion"]
[15,1510,11000,"Regional Boyaca","CZ Miraflores",null,null,null,null,null,null,null,null,null,null,null,null,null,null,null,null,null,null,null,"Promotora Social"]
[15,1511,11100,"Regional Boyaca","CZ Moniquira",null,null,null,null,null,null,null,null,null,null,null,null,null,null,null,null,null,null,null,"Psicologo"]
[15,1512,11200,"Regional Boyaca","CZ Otanche",null,null,null,null,null,null,null,null,null,null,null,null,null,null,null,null,null,null,null,"Psicopedagogo"]
[17,1700,10000,"Regional Caldas","Direccion Regional",null,null,null,null,null,null,null,null,null,null,null,null,null,null,null,null,null,null,null,"Publicista"]
[17,1700,10010,"Regional Caldas","Grupo Administrativo",null,null,null,null,null,null,null,null,null,null,null,null,null,null,null,null,null,null,null,"Quimico"]
[17,1700,20000,"Regional Caldas","Grupo de Asistencia Tecnica",null,null,null,null,null,null,null,null,null,null,null,null,null,null,null,null,null,null,null,"Quimico Farmaceutico"]
[17,1700,30000,"Regional Caldas","Grupo de Planeacion y Sistemas",null,null,null,null,null,null,null,null,null,null,null,null,null,null,null,null,null,null,null,"Recreador"]
[17,1700,40000,"Regional Caldas","Grupo Financiero",null,null,null,null,null,null,null,null,null,null,null,null,null,null,null,null,null,null,null,"Relaciones Internacionales"]
[17,1700,50000,"Regional Caldas","Grupo Juridico",null,null,null,null,null,null,null,null,null,null,null,null,null,null,null,null,null,null,null,"Secretario(A) Y/O Auxiliar Administrativo(A)"]
[17,1701,10100,"Regional Caldas","CZ Manizales 1",null,null,null,null,null,null,null,null,null,null,null,null,null,null,null,null,null,null,null,"Sin Informacion"]
[17,1702,10200,"Regional Caldas","CZ Manizales 2",null,null,null,null,null,null,null,null,null,null,null,null,null,null,null,null,null,null,null,"Sociologo"]
[17,1703,10300,"Regional Caldas","CZ Occidente",null,null,null,null,null,null,null,null,null,null,null,null,null,null,null,null,null,null,null,"Técnica Profesional En Tecnicos Forestales"]
[17,1704,10400,"Regional Caldas","CZ Oriente",null,null,null,null,null,null,null,null,null,null,null,null,null,null,null,null,null,null,null,"Tecnico En Administracion Y Mercadotecnia"]
[17,1705,10500,"Regional Caldas","CZ Norte",null,null,null,null,null,null,null,null,null,null,null,null,null,null,null,null,null,null,null,"Tecnico Profesional En Comercio Exterior Y Negocios Internacionales"]
[17,1706,10600,"Regional Caldas","CZ Sur Oriente",null,null,null,null,null,null,null,null,null,null,null,null,null,null,null,null,null,null,null,"Tecnico Profesional En Computacion"]
[17,1707,10700,"Regional Caldas","CZ Del Cafe",null,null,null,null,null,null,null,null,null,null,null,null,null,null,null,null,null,null,null,"Tecnico Profesional En Diseño Grafico"]
[18,1800,10000,"Regional Caqueta","Direccion Regional",null,null,null,null,null,null,null,null,null,null,null,null,null,null,null,null,null,null,null,"Tecnico Profesional En Electromedicina"]
[18,1800,10010,"Regional Caqueta","Grupo Administrativo",null,null,null,null,null,null,null,null,null,null,null,null,null,null,null,null,null,null,null,"Tecnico Profesional En Electronica Industrial "]
[18,1800,20000,"Regional Caqueta","Grupo de Asistencia Tecnica",null,null,null,null,null,null,null,null,null,null,null,null,null,null,null,null,null,null,null,"Tecnico Profesional En Enfermeria"]
[18,1800,30000,"Regional Caqueta","Grupo de Planeacion y Sistemas",null,null,null,null,null,null,null,null,null,null,null,null,null,null,null,null,null,null,null,"Tecnico Profesional En Periodismo"]
[18,1800,40000,"Regional Caqueta","Grupo Financiero",null,null,null,null,null,null,null,null,null,null,null,null,null,null,null,null,null,null,null,"Tecnico Profesional En Seguridad E Higiene Industrial"]
[18,1800,50000,"Regional Caqueta","Grupo Juridico",null,null,null,null,null,null,null,null,null,null,null,null,null,null,null,null,null,null,null,"Tecnico Profesional En Tecnologia De Plasticos"]
[18,1801,10100,"Regional Caqueta","CZ Florencia 1",null,null,null,null,null,null,null,null,null,null,null,null,null,null,null,null,null,null,null,"Tecnico Profesional En Telecomunicaciones"]
[18,1802,10200,"Regional Caqueta","CZ Florencia 2",null,null,null,null,null,null,null,null,null,null,null,null,null,null,null,null,null,null,null,"Tecnología Naviera"]
[18,1803,10300,"Regional Caqueta","CZ Puerto Rico",null,null,null,null,null,null,null,null,null,null,null,null,null,null,null,null,null,null,null,"Tecnologo Agropecuaria"]
[18,1804,10400,"Regional Caqueta","CZ Belen De Los Andaquies",null,null,null,null,null,null,null,null,null,null,null,null,null,null,null,null,null,null,null,"Tecnologo De Entrenamiento Y Gestion Militar"]
[19,1900,10000,"Regional Cauca","Direccion Regional",null,null,null,null,null,null,null,null,null,null,null,null,null,null,null,null,null,null,null,"Tecnologo Electronica"]
[19,1900,10010,"Regional Cauca","Grupo de Planeacion y Sistemas",null,null,null,null,null,null,null,null,null,null,null,null,null,null,null,null,null,null,null,"Tecnologo En Abastecimientos Aeronauticos"]
[19,1900,20000,"Regional Cauca","Grupo Juridico",null,null,null,null,null,null,null,null,null,null,null,null,null,null,null,null,null,null,null,"Tecnologo En Administración Publica"]
[19,1900,30000,"Regional Cauca","Grupo de Asistencia Tecnica",null,null,null,null,null,null,null,null,null,null,null,null,null,null,null,null,null,null,null,"Tecnologo En Administracion Y Analisis De La Seguridad"]
[19,1900,40000,"Regional Cauca","Grupo Administrativo",null,null,null,null,null,null,null,null,null,null,null,null,null,null,null,null,null,null,null,"Tecnologo En Administracion Y Finanzas"]
[19,1900,50000,"Regional Cauca","Grupo Financiero",null,null,null,null,null,null,null,null,null,null,null,null,null,null,null,null,null,null,null,"Tecnologo En Analisis De Costos Y Presupuestos"]
[19,1901,10100,"Regional Cauca","CZ Popayan",null,null,null,null,null,null,null,null,null,null,null,null,null,null,null,null,null,null,null,"Tecnologo En Calidad"]
[19,1902,10200,"Regional Cauca","CZ Centro",null,null,null,null,null,null,null,null,null,null,null,null,null,null,null,null,null,null,null,"Tecnologo En Comunicaciones Aeronauticas"]
[19,1903,10300,"Regional Cauca","CZ Indigena",null,null,null,null,null,null,null,null,null,null,null,null,null,null,null,null,null,null,null,"Tecnologo En Construccion De Acabados Arquitectonicos"]
[19,1904,10500,"Regional Cauca","CZ Sur",null,null,null,null,null,null,null,null,null,null,null,null,null,null,null,null,null,null,null,"Tecnologo En Diseño Grafico"]
[19,1905,10400,"Regional Cauca","CZ Norte",null,null,null,null,null,null,null,null,null,null,null,null,null,null,null,null,null,null,null,"Tecnologo En Electricidad"]
[19,1906,10600,"Regional Cauca","CZ Macizo Colombiano",null,null,null,null,null,null,null,null,null,null,null,null,null,null,null,null,null,null,null,"Tecnologo En Electromecanica"]
[19,1907,10700,"Regional Cauca","CZ Costa Pacifica",null,null,null,null,null,null,null,null,null,null,null,null,null,null,null,null,null,null,null,"Tecnologo En Electronica"]
[20,2000,10000,"Regional Cesar","Direccion Regional",null,null,null,null,null,null,null,null,null,null,null,null,null,null,null,null,null,null,null,"Tecnologo En Electronica Aeronautica"]
[20,2000,10010,"Regional Cesar","Grupo de Planeacion y Sistemas",null,null,null,null,null,null,null,null,null,null,null,null,null,null,null,null,null,null,null,"Tecnologo En Electronica Y Comunicaciones"]
[20,2000,20000,"Regional Cesar","Grupo Juridico",null,null,null,null,null,null,null,null,null,null,null,null,null,null,null,null,null,null,null,"Tecnologo En Entrenamiento Y Gestion Militar"]
[20,2000,30000,"Regional Cesar","Grupo de Asistencia Tecnica",null,null,null,null,null,null,null,null,null,null,null,null,null,null,null,null,null,null,null,"Tecnologo En Financiera Y Contable"]
[20,2000,40000,"Regional Cesar","Grupo Administrativo",null,null,null,null,null,null,null,null,null,null,null,null,null,null,null,null,null,null,null,"Tecnologo En Gestion Administrativa"]
[20,2000,50000,"Regional Cesar","Grupo Financiero",null,null,null,null,null,null,null,null,null,null,null,null,null,null,null,null,null,null,null,"Tecnologo En Gestion Naviera Y Portuaria "]
[20,2001,10100,"Regional Cesar","CZ Valledupar 1",null,null,null,null,null,null,null,null,null,null,null,null,null,null,null,null,null,null,null,"Tecnologo En Informatica"]
[20,2002,10200,"Regional Cesar","CZ Valledupar 2",null,null,null,null,null,null,null,null,null,null,null,null,null,null,null,null,null,null,null,"Tecnologo En Mantenimiento Aeronautico"]
[20,2003,10300,"Regional Cesar","CZ Chiriguana",null,null,null,null,null,null,null,null,null,null,null,null,null,null,null,null,null,null,null,"Tecnologo En Mantenimiento De Equipo Biomedico"]
[20,2004,10400,"Regional Cesar","CZ Aguachica",null,null,null,null,null,null,null,null,null,null,null,null,null,null,null,null,null,null,null,"Tecnologo En Mercadeo"]
[20,2005,10500,"Regional Cesar","CZ Agustin Codazzi",null,null,null,null,null,null,null,null,null,null,null,null,null,null,null,null,null,null,null,"Tecnologo En Produccion"]
[23,2300,10000,"Regional Cordoba","Direccion Regional",null,null,null,null,null,null,null,null,null,null,null,null,null,null,null,null,null,null,null,"Tecnologo En Radiologia E Imagenes Diagnosticas"]
[23,2300,10010,"Regional Cordoba","Grupo de Planeacion y Sistemas",null,null,null,null,null,null,null,null,null,null,null,null,null,null,null,null,null,null,null,"Tecnologo En Regencia De Farmacia"]
[23,2300,20000,"Regional Cordoba","Grupo Juridico",null,null,null,null,null,null,null,null,null,null,null,null,null,null,null,null,null,null,null,"Tecnologo En Saneamiento Ambiental"]
[23,2300,30000,"Regional Cordoba","Grupo de Asistencia Tecnica",null,null,null,null,null,null,null,null,null,null,null,null,null,null,null,null,null,null,null,"Tecnologo En Sanidad Naval"]
[23,2300,40000,"Regional Cordoba","Grupo Administrativo",null,null,null,null,null,null,null,null,null,null,null,null,null,null,null,null,null,null,null,"Tecnologo En Seguridad Aeroportuaria"]
[23,2300,50000,"Regional Cordoba","Grupo Financiero",null,null,null,null,null,null,null,null,null,null,null,null,null,null,null,null,null,null,null,"Tecnologo En Seguridad E Higiene Ocupacional"]
[23,2301,10100,"Regional Cordoba","CZ Monteria 1",null,null,null,null,null,null,null,null,null,null,null,null,null,null,null,null,null,null,null,"Tecnologo En Sistemas"]
[23,2302,10200,"Regional Cordoba","CZ Cerete",null,null,null,null,null,null,null,null,null,null,null,null,null,null,null,null,null,null,null,"Tecnologo En Sistemas De Informacion"]
[23,2303,10300,"Regional Cordoba","CZ Planetarica",null,null,null,null,null,null,null,null,null,null,null,null,null,null,null,null,null,null,null,"Tecnologo En Telecomunicaciones"]
[23,2304,10400,"Regional Cordoba","CZ Tierralta",null,null,null,null,null,null,null,null,null,null,null,null,null,null,null,null,null,null,null,"Tecnologo En Topografia"]
[23,2305,10500,"Regional Cordoba","CZ Montelibano",null,null,null,null,null,null,null,null,null,null,null,null,null,null,null,null,null,null,null,"Tecnologo Industrial"]
[23,2306,10600,"Regional Cordoba","CZ Lorica",null,null,null,null,null,null,null,null,null,null,null,null,null,null,null,null,null,null,null,"Tecnologo Mecanica"]
[23,2307,10700,"Regional Cordoba","CZ Sahagun",null,null,null,null,null,null,null,null,null,null,null,null,null,null,null,null,null,null,null,"Tecnologo Naval En Administracion Maritima"]
[23,2308,10800,"Regional Cordoba","CZ San Andres De Sotavento",null,null,null,null,null,null,null,null,null,null,null,null,null,null,null,null,null,null,null,"Tecnologo Naval En Electromecanica"]
[25,2500,10000,"Regional Cundinamarca","Direccion Regional",null,null,null,null,null,null,null,null,null,null,null,null,null,null,null,null,null,null,null,"Tecnologo Naval En Electronica"]
[25,2500,10010,"Regional Cundinamarca","Grupo de Planeacion y Sistemas",null,null,null,null,null,null,null,null,null,null,null,null,null,null,null,null,null,null,null,"Tecnologo Naval En Hidrografia"]
[25,2500,20000,"Regional Cundinamarca","Grupo Juridico",null,null,null,null,null,null,null,null,null,null,null,null,null,null,null,null,null,null,null,"Tecnologo Naval En Oceanografia Fisica"]
[25,2500,30000,"Regional Cundinamarca","Grupo de Asistencia Tecnica",null,null,null,null,null,null,null,null,null,null,null,null,null,null,null,null,null,null,null,"Tecnologo Promocion Social"]
[25,2500,40000,"Regional Cundinamarca","Grupo Administrativo",null,null,null,null,null,null,null,null,null,null,null,null,null,null,null,null,null,null,null,"Tecnologo Quimica"]
[25,2500,50000,"Regional Cundinamarca","Grupo Financiero",null,null,null,null,null,null,null,null,null,null,null,null,null,null,null,null,null,null,null,"Teologo"]
[25,2501,10100,"Regional Cundinamarca","CZ Soacha",null,null,null,null,null,null,null,null,null,null,null,null,null,null,null,null,null,null,null,"Terapista De Lenguaje"]
[25,2502,10200,"Regional Cundinamarca","CZ Zipaquira",null,null,null,null,null,null,null,null,null,null,null,null,null,null,null,null,null,null,null,"Terapista Ocupacional"]
[25,2503,10300,"Regional Cundinamarca","CZ Choconta",null,null,null,null,null,null,null,null,null,null,null,null,null,null,null,null,null,null,null,"Trabajador Social"]
[25,2504,10400,"Regional Cundinamarca","CZ Pacho",null,null,null,null,null,null,null,null,null,null,null,null,null,null,null,null,null,null,null,"Traductor"]
[25,2505,10500,"Regional Cundinamarca","CZ Villeta",null,null,null,null,null,null,null,null,null,null,null,null,null,null,null,null,null,null,null,"Vaquero"]
[25,2506,10600,"Regional Cundinamarca","CZ Facatativa",null,null,null,null,null,null,null,null,null,null,null,null,null,null,null,null,null,null,null,"Zootecnista"]
[25,2507,10700,"Regional Cundinamarca","CZ Fusagasuga",null,null,null,null,null,null,null,null,null,null,null,null,null,null,null,null,null,null,null,"Zootecnista"]
[25,2508,10800,"Regional Cundinamarca","CZ Caqueza"]
[25,2509,10900,"Regional Cundinamarca","CZ Gacheta"]
[25,2510,11000,"Regional Cundinamarca","CZ Girardot"]
[25,2511,11100,"Regional Cundinamarca","CZ La Mesa"]
[25,2512,11200,"Regional Cundinamarca","CZ Ubate"]
[25,2513,11300,"Regional Cundinamarca","CZ San Juan De Rio Seco"]
[27,2700,10000,"Regional Choco","Direccion Regional"]
[27,2700,10010,"Regional Choco","Grupo de Planeacion y Sistemas"]
[27,2700,20000,"Regional Choco","Grupo Juridico"]
[27,2700,30000,"Regional Choco","Grupo de Asistencia Tecnica"]
[27,2700,40000,"Regional Choco","Grupo Administrativo"]
[27,2700,50000,"Regional Choco","Grupo Financiero"]
[27,2701,10100,"Regional Choco","CZ Quibdo"]
[27,2702,10200,"Regional Choco","CZ Istmina"]
[27,2703,10300,"Regional Choco","CZ Bahia Solano"]
[27,2704,10400,"Regional Choco","CZ Riosucio"]
[27,2705,10500,"Regional Choco","CZ Tado"]
[41,4100,10000,"Regional Huila","Direccion Regional"]
[41,4100,10010,"Regional Huila","Grupo de Planeacion y Sistemas"]
[41,4100,20000,"Regional Huila","Grupo Juridico"]
[41,4100,30000,"Regional Huila","Grupo de Asistencia Tecnica"]
[41,4100,40000,"Regional Huila","Grupo Administrativo"]
[41,4100,50000,"Regional Huila","Grupo Financiero"]
[41,4101,10100,"Regional Huila","CZ Neiva"]
[41,4102,10300,"Regional Huila","CZ Garzon"]
[41,4103,10400,"Regional Huila","CZ La Plata"]
[41,4104,10500,"Regional Huila","CZ Pitalito"]
[41,4105,10200,"Regional Huila","CZ La Gaitana"]
[44,4400,10000,"Regional Guajira","Direccion Regional"]
[44,4400,10010,"Regional Guajira","Grupo de Planeacion y Sistemas"]
[44,4400,20000,"Regional Guajira","Grupo Juridico"]
[44,4400,30000,"Regional Guajira","Grupo de Asistencia Tecnica"]
[44,4400,40000,"Regional Guajira","Grupo Administrativo"]
[44,4400,50000,"Regional Guajira","Grupo Financiero"]
[44,4401,10100,"Regional Guajira","CZ Riohacha 1"]
[44,4402,10200,"Regional Guajira","CZ Riohacha 2"]
[44,4403,10300,"Regional Guajira","CZ Fonseca"]
[44,4404,10400,"Regional Guajira","CZ Manaure"]
[44,4405,10500,"Regional Guajira","CZ Maicao"]
[47,4700,10000,"Regional Magdalena","Direccion Regional"]
[47,4700,10010,"Regional Magdalena","Grupo de Planeacion y Sistemas"]
[47,4700,20000,"Regional Magdalena","Grupo Juridico"]
[47,4700,30000,"Regional Magdalena","Grupo de Asistencia Tecnica"]
[47,4700,40000,"Regional Magdalena","Grupo Administrativo"]
[47,4700,50000,"Regional Magdalena","Grupo Financiero"]
[47,4701,10100,"Regional Magdalena","CZ Santa Marta 1 SUR"]
[47,4702,10200,"Regional Magdalena","CZ Santa Marta 2 Norte"]
[47,4703,10300,"Regional Magdalena","CZ Del Rio"]
[47,4704,10400,"Regional Magdalena","CZ Cienaga"]
[47,4705,10500,"Regional Magdalena","CZ Fundacion"]
[47,4706,10400,"Regional Magdalena","CZ Plato"]
[47,4707,10700,"Regional Magdalena","CZ El Banco"]
[47,4708,10800,"Regional Magdalena","CZ Santa Ana"]
[50,5000,10000,"Regional Meta","Direccion Regional"]
[50,5000,10010,"Regional Meta","Grupo de Planeacion y Sistemas"]
[50,5000,20000,"Regional Meta","Grupo Juridico"]
[50,5000,30000,"Regional Meta","Grupo de Asistencia Tecnica"]
[50,5000,40000,"Regional Meta","Grupo Administrativo"]
[50,5000,50000,"Regional Meta","Grupo Financiero"]
[50,5001,10100,"Regional Meta","CZ Villavicencio 1"]
[50,5002,10200,"Regional Meta","CZ Villavicencio 2"]
[50,5003,10300,"Regional Meta","CZ Granada"]
[50,5004,10400,"Regional Meta","CZ Acacias"]
[50,5005,10500,"Regional Meta","CZ Puerto Lopez"]
[52,5200,10000,"Regional Nariño","Direccion Regional"]
[52,5200,10010,"Regional Nariño","Grupo de Planeacion y Sistemas"]
[52,5200,20000,"Regional Nariño","Grupo Juridico"]
[52,5200,30000,"Regional Nariño","Grupo de Asistencia Tecnica"]
[52,5200,40000,"Regional Nariño","Grupo Administrativo"]
[52,5200,50000,"Regional Nariño","Grupo Financiero"]
[52,5201,10100,"Regional Nariño","CZ Pasto 1"]
[52,5202,10200,"Regional Nariño","CZ Pasto 2"]
[52,5203,10300,"Regional Nariño","CZ Tumaco"]
[52,5204,10400,"Regional Nariño","CZ Ipiales"]
[52,5205,10500,"Regional Nariño","CZ Tuquerres"]
[52,5206,10600,"Regional Nariño","CZ La Union"]
[52,5207,10700,"Regional Nariño","CZ Barbacoas"]
[52,5208,10800,"Regional Nariño","CZ Remolino"]
[54,5400,10000,"Regional Norte de Santander","Direccion Regional"]
[54,5400,10010,"Regional Norte de Santander","Grupo de Planeacion y Sistemas"]
[54,5400,20000,"Regional Norte de Santander","Grupo Juridico"]
[54,5400,30000,"Regional Norte de Santander","Grupo de Asistencia Tecnica"]
[54,5400,40000,"Regional Norte de Santander","Grupo Administrativo"]
[54,5400,50000,"Regional Norte de Santander","Grupo Financiero"]
[54,5401,10100,"Regional Norte de Santander","CZ Cucuta 1"]
[54,5402,10200,"Regional Norte de Santander","CZ Cucuta 2"]
[54,5403,10300,"Regional Norte de Santander","CZ Cucuta 3"]
[54,5404,10400,"Regional Norte de Santander","CZ Ocaña"]
[54,5405,10500,"Regional Norte de Santander","CZ Pamplona"]
[54,5406,10600,"Regional Norte de Santander","CZ Tibu"]
[63,6300,10000,"Regional Quindio","Direccion Regional"]
[63,6300,10010,"Regional Quindio","Grupo de Planeacion y Sistemas"]
[63,6300,20000,"Regional Quindio","Grupo Juridico"]
[63,6300,30000,"Regional Quindio","Grupo de Asistencia Tecnica"]
[63,6300,40000,"Regional Quindio","Grupo Administrativo"]
[63,6300,50000,"Regional Quindio","Grupo Financiero"]
[63,6301,10100,"Regional Quindio","CZ Armenia Sur"]
[63,6302,10200,"Regional Quindio","CZ Armenia Norte"]
[63,6303,10300,"Regional Quindio","CZ Calarca"]
[66,6600,10000,"Regional Risaralda","Direccion Regional"]
[66,6600,10010,"Regional Risaralda","Grupo de Planeacion y Sistemas"]
[66,6600,20000,"Regional Risaralda","Grupo Juridico"]
[66,6600,30000,"Regional Risaralda","Grupo de Asistencia Tecnica"]
[66,6600,40000,"Regional Risaralda","Grupo Administrativo"]
[66,6600,50000,"Regional Risaralda","Grupo Financiero"]
[66,6601,10100,"Regional Risaralda","CZ Pereira"]
[66,6602,10200,"Regional Risaralda","CZ La Virginia"]
[66,6603,10300,"Regional Risaralda","CZ Dos Quebradas"]
[66,6604,10400,"Regional Risaralda","CZ Belen De Umbria"]
[66,6605,10500,"Regional Risaralda","CZ Santa Rosa De Cabal"]
[68,6800,10000,"Regional Santander","Direccion Regional"]
[68,6800,10010,"Regional Santander","Grupo de Planeacion y Sistemas"]
[68,6800,20000,"Regional Santander","Grupo Juridico"]
[68,6800,30000,"Regional Santander","Grupo de Asistencia Tecnica"]
[68,6800,40000,"Regional Santander","Grupo Administrativo"]
[68,6800,50000,"Regional Santander","Grupo Financiero"]
[68,6801,10100,"Regional Santander","CZ Antonia Santos"]
[68,6802,10200,"Regional Santander","CZ Bucaramanga Sur"]
[68,6803,10300,"Regional Santander","CZ Carlos Lleras Restrepo"]
[68,6804,10400,"Regional Santander","CZ Luis Carlos Galan Sarmiento"]
[68,6805,10500,"Regional Santander","CZ Yariquies"]
[68,6806,10600,"Regional Santander","CZ La Floresta"]
[68,6807,10700,"Regional Santander","CZ San Gil"]
[68,6808,10800,"Regional Santander","CZ Socorro"]
[68,6809,10900,"Regional Santander","CZ Velez"]
[68,6810,11000,"Regional Santander","CZ Malaga"]
[70,7000,10000,"Regional Sucre","Direccion Regional"]
[70,7000,10010,"Regional Sucre","Grupo de Planeacion y Sistemas"]
[70,7000,20000,"Regional Sucre","Grupo Juridico"]
[70,7000,30000,"Regional Sucre","Grupo de Asistencia Tecnica"]
[70,7000,40000,"Regional Sucre","Grupo Administrativo"]
[70,7000,50000,"Regional Sucre","Grupo Financiero"]
[70,7001,10100,"Regional Sucre","CZ Boston"]
[70,7002,10200,"Regional Sucre","CZ Norte"]
[70,7003,10300,"Regional Sucre","CZ Sincelejo"]
[70,7004,10400,"Regional Sucre","CZ La Mojana"]
[73,7300,10000,"Regional Tolima","Direccion Regional"]
[73,7300,10010,"Regional Tolima","Grupo de Planeacion y Sistemas"]
[73,7300,20000,"Regional Tolima","Grupo Juridico"]
[73,7300,30000,"Regional Tolima","Grupo de Asistencia Tecnica"]
[73,7300,40000,"Regional Tolima","Grupo Administrativo"]
[73,7300,50000,"Regional Tolima","Grupo Financiero"]
[73,7301,10100,"Regional Tolima","CZ Ibague Jordan"]
[73,7302,10200,"Regional Tolima","CZ Ibague Galan"]
[73,7303,10300,"Regional Tolima","CZ Ibague Centro"]
[73,7304,10400,"Regional Tolima","CZ Libano"]
[73,7305,10500,"Regional Tolima","CZ Lerida"]
[73,7306,10600,"Regional Tolima","CZ Honda"]
[73,7307,10700,"Regional Tolima","CZ Espinal"]
[73,7308,10800,"Regional Tolima","CZ Chaparral"]
[73,7309,10900,"Regional Tolima","CZ Purificacion"]
[73,7312,11000,"Regional Tolima","CZ Melgar"]
[76,7600,10000,"Regional Valle","Direccion Regional"]
[76,7600,10010,"Regional Valle","Grupo de Planeacion y Sistemas"]
[76,7600,20000,"Regional Valle","Grupo Juridico"]
[76,7600,30200,"Regional Valle","Grupo de Atencion en Ciclos de Vida y Nutricion"]
[76,7600,30400,"Regional Valle","Grupo de Proteccion"]
[76,7600,40000,"Regional Valle","Grupo Administrativo"]
[76,7600,50000,"Regional Valle","Grupo Financiero"]
[76,7601,10100,"Regional Valle","CZ Zona Suroriental"]
[76,7602,10200,"Regional Valle","CZ Zona Nororiental"]
[76,7603,10300,"Regional Valle","CZ Ladera"]
[76,7604,10400,"Regional Valle","CZ Centro"]
[76,7605,10500,"Regional Valle","CZ Sur"]
[76,7606,10600,"Regional Valle","CZ Jamundi"]
[76,7607,10700,"Regional Valle","CZ Yumbo"]
[76,7608,10800,"Regional Valle","CZ Palmira"]
[76,7609,10900,"Regional Valle","CZ Buga"]
[76,7610,11000,"Regional Valle","CZ Tulua"]
[76,7611,11100,"Regional Valle","CZ Sevilla"]
[76,7612,11200,"Regional Valle","CZ Roldanillo"]
[76,7613,11300,"Regional Valle","CZ Cartago"]
[76,7614,11400,"Regional Valle","CZ Buenaventura"]
[81,8100,10000,"Regional Arauca","Direccion Regional"]
[81,8100,10010,"Regional Arauca","Grupo de Planeacion y Sistemas"]
[81,8100,20000,"Regional Arauca","Grupo Juridico"]
[81,8100,30000,"Regional Arauca","Grupo de Asistencia Tecnica"]
[81,8100,40000,"Regional Arauca","Grupo Administrativo"]
[81,8100,50000,"Regional Arauca","Grupo Financiero"]
[81,8101,10100,"Regional Arauca","CZ Arauca"]
[81,8102,10200,"Regional Arauca","CZ Saravena"]
[81,8103,10300,"Regional Arauca","CZ Tame"]
[85,8500,10000,"Regional Casanare","Direccion Regional"]
[85,8500,10010,"Regional Casanare","Grupo de Planeacion y Sistemas"]
[85,8500,20000,"Regional Casanare","Grupo Juridico"]
[85,8500,30000,"Regional Casanare","Grupo de Asistencia Tecnica"]
[85,8500,40000,"Regional Casanare","Grupo Administrativo"]
[85,8500,50000,"Regional Casanare","Grupo Financiero"]
[85,8501,10100,"Regional Casanare","CZ Yopal"]
[85,8502,10200,"Regional Casanare","CZ Paz De Ariporo"]
[85,8503,10300,"Regional Casanare","CZ Villanueva"]
[86,8600,10000,"Regional Putumayo","Direccion Regional"]
[86,8600,10010,"Regional Putumayo","Grupo de Planeacion y Sistemas"]
[86,8600,20000,"Regional Putumayo","Grupo Juridico"]
[86,8600,30000,"Regional Putumayo","Grupo de Asistencia Tecnica"]
[86,8600,40000,"Regional Putumayo","Grupo Administrativo y Financiero"]
[86,8600,50000,"Regional Putumayo","Grupo Financiero"]
[86,8601,10100,"Regional Putumayo","CZ Mocoa"]
[86,8602,10300,"Regional Putumayo","CZ Sibundoy"]
[86,8603,10200,"Regional Putumayo","CZ Puerto Asis"]
[86,8604,10400,"Regional Putumayo","CZ La Hormiga"]
[88,8800,10000,"Regional San Andres","Direccion Regional"]
[88,8800,10010,"Regional San Andres","Grupo de Planeacion y Sistemas"]
[88,8800,20000,"Regional San Andres","Grupo Juridico"]
[88,8800,30000,"Regional San Andres","Grupo de Asistencia Tecnica"]
[88,8800,40000,"Regional San Andres","Grupo Administrativo"]
[88,8800,50000,"Regional San Andres","Grupo Financiero"]
[88,8801,10100,"Regional San Andres","CZ Los Almendros"]
[91,9100,10000,"Regional Amazonas","Direccion Regional"]
[91,9100,30000,"Regional Amazonas","Grupo de Asistencia Tecnica"]
[91,9100,40000,"Regional Amazonas","Grupo de Gestion de Soporte"]
[91,9101,10100,"Regional Amazonas","CZ Leticia"]
[94,9400,10000,"Regional Guainia","Direccion Regional"]
[94,9400,30000,"Regional Guainia","Grupo de Asistencia Tecnica"]
[94,9400,40000,"Regional Guainia","Grupo de Gestion de Soporte"]
[94,9401,10100,"Regional Guainia","CZ Inirida"]
[95,9500,10000,"Regional Guaviare","Direccion Regional"]
[95,9500,30000,"Regional Guaviare","Grupo de Asistencia Tecnica"]
[95,9500,40000,"Regional Guaviare","Grupo de Gestion de Soporte"]
[95,9501,10100,"Regional Guaviare","Centro Zonal San jose del Guaviare"]
[97,9700,10000,"Regional Vaupes","Direccion Regional"]
[97,9700,30000,"Regional Vaupes","Grupo de Asistencia Tecnica"]
[97,9700,40000,"Regional Vaupes","Grupo de Gestion de Soporte"]
[97,9701,10100,"Regional Vaupes","CZ Mitu"]
[99,9900,10000,"Regional Vichada","Direccion Regional"]
[99,9900,30000,"Regional Vichada","Grupo de Asistencia Tecnica"]
[99,9900,40000,"Regional Vichada","Grupo de Gestion de Soporte"]
[99,9901,10100,"Regional Vichada","CZ Puerto Carreño"]